Workbook

Sheet User Guide

Sheet Simulator
B1: Bridgelux SMD Products Simulator
N2: Rev 6
L3: Valid Until | N3: 2019-06-30
B4: Enter color and temperature values: | M4: Section 1
F6: Color Temperature and CRI: | G6: 2700K, 80 CRI
F8: Case Temperature (0-105℃): | G8: 25
B13: Lumen Output at Required Drive Current | M13: Section 2
B14: Calculate lumens for selected drive current | K14: ENTER DRIVE CURRENT in mA (1-960mA): | M14: 120
B15: SMD 2835, 3030, 5050
B16: Product | C16: Part Number | D16: Drive Current (mA) | E16: Voltage (V) | F16: Power (W) | G16: ="Lumen DC @ Case = "&G8&" °C" -> Lumen DC @ Case = 25 °C | H16: ="Efficacy DC @ Case = "&G8&" °C" -> Efficacy DC @ Case = 25 °C | I16: Max Drive Current (mA) | J16: Typical Current (mA) | K16: Typical Pulsed Lumens @ Case=25°C | L16: Typical Pulsed Efficacy @ Case=25°C | M16: Tj (°C)
B17: 2835 0.2W 3V | C17: =IFERROR(VLOOKUP($G$6,'Raw data'!$A$2:$N$28,2,0),"") -> BXEN-27E-11L-3AA-00-0-0 | D17: =IF(C17="-","-",IF($M$14>I17,"-",$M$14)) -> - | E17: =IF(D17="-","-",'Raw data'!D143+'Raw data'!F143) -> - | F17: =IF(D17="-","-",D17*E17/1000) -> - | G17: =IF(D17="-","-",Simulator!K17*'Raw data'!E143*'Raw data'!G143) -> - | H17: =IF(D17="-","-",G17/F17) -> - | I17: =IFERROR(VLOOKUP($G$6,'Raw data'!$A$30:$N$56,2,0),"") -> 100 | J17: =IFERROR(VLOOKUP($G$6,'Raw data'!$A$58:$N$84,2,0),"") -> 60 | K17: =IFERROR(VLOOKUP($G$6,'Raw data'!$A$86:$N$112,2,0),"") -> 26 | L17: =IFERROR(VLOOKUP($G$6,'Raw data'!$A$114:$N$140,2,0),"") -> 144 | M17: =IF(D17="-","-",'Raw data'!I143) -> -
B18: 2835 0.2W 3V L | C18: =IFERROR(VLOOKUP($G$6,'Raw data'!$A$2:$P$28,16,0),"") -> BXEN-27E-11L-37A-00-0-0 | D18: =IF(C18="-","-",IF($M$14>I18,"-",$M$14)) -> - | E18: =IF(D18="-","-",'Raw data'!D156+'Raw data'!F156) -> - | F18: =IF(D18="-","-",D18*E18/1000) -> - | G18: =IF(D18="-","-",Simulator!K18*'Raw data'!E156*'Raw data'!G156) -> - | H18: =IF(D18="-","-",G18/F18) -> - | I18: =IFERROR(VLOOKUP($G$6,'Raw data'!$A$30:$P$56,16,0),"") -> 100 | J18: =IFERROR(VLOOKUP($G$6,'Raw data'!$A$58:$P$84,16,0),"") -> 60 | K18: =IFERROR(VLOOKUP($G$6,'Raw data'!$A$86:$P$112,16,0),"") -> 24 | L18: =IFERROR(VLOOKUP($G$6,'Raw data'!$A$114:$P$140,16,0),"") -> 133 | M18: =IF(D18="-","-",'Raw data'!I156) -> -
B19: 2835 0.5W 3V | C19: =IFERROR(VLOOKUP($G$6,'Raw data'!$A$3:$N$28,4,0),"") -> BXEN-27E-11M-39A-00-0-0 | D19: =IF(C19="-","-",IF($M$14>I19,"-",$M$14)) -> 120 | E19: =IF(D19="-","-",'Raw data'!D144+'Raw data'!F144) -> 3.121027427 | F19: =IF(D19="-","-",D19*E19/1000) -> 0.3745232912 | G19: =IF(D19="-","-",Simulator!K19*'Raw data'!E144*'Raw data'!G144) -> 49.40120216 | H19: =IF(D19="-","-",G19/F19) -> 131.9042188 | I19: =IFERROR(VLOOKUP($G$6,'Raw data'!$A$30:$N$56,4,0),"") -> 150 | J19: =IFERROR(VLOOKUP($G$6,'Raw data'!$A$58:$N$84,4,0),"") -> 150 | K19: =IFERROR(VLOOKUP($G$6,'Raw data'!$A$86:$N$112,4,0),"") -> 60 | L19: =IFERROR(VLOOKUP($G$6,'Raw data'!$A$114:$N$140,4,0),"") -> 125 | M19: =IF(D19="-","-",'Raw data'!I144) -> 29.50230807
B20: 2835 0.5W 3V Gen1 | C20: =IFERROR(VLOOKUP($G$6,'Raw data'!$A$2:$S$28,19,0),"") -> BXEN-27E-11M-3A-00-0-0 | D20: =IF(C20="-","-",IF($M$14>I20,"-",$M$14)) -> 120 | E20: =IF(D20="-","-",'Raw data'!D159+'Raw data'!F159) -> 3.177046628 | F20: =IF(D20="-","-",D20*E20/1000) -> 0.3812455953 | G20: =IF(D20="-","-",Simulator!K20*'Raw data'!E159*'Raw data'!G159) -> 50.46815648 | H20: =IF(D20="-","-",G20/F20) -> 132.3770218 | I20: =IFERROR(VLOOKUP($G$6,'Raw data'!$A$30:$S$56,19,0),"") -> 150 | J20: =IFERROR(VLOOKUP($G$6,'Raw data'!$A$58:$S$84,19,0),"") -> 150 | K20: =IFERROR(VLOOKUP($G$6,'Raw data'!$A$86:$S$112,19,0),"") -> 62 | L20: =IFERROR(VLOOKUP($G$6,'Raw data'!$A$114:$S$140,19,0),"") -> 125 | M20: =IF(D20="-","-",'Raw data'!I159) -> 32.64723287
B21: 2835 0.5W 3V Gen2 | C21: =IFERROR(VLOOKUP($G$6,'Raw data'!$A$2:$T$28,20,0),"") -> BXEN-27E-11M-3AA-00-00-0 | D21: =IF(C21="-","-",IF($M$14>I21,"-",$M$14)) -> 120 | E21: =IF(D21="-","-",'Raw data'!D160+'Raw data'!F160) -> 3.069412376 | F21: =IF(D21="-","-",D21*E21/1000) -> 0.3683294851 | G21: =IF(D21="-","-",Simulator!K21*'Raw data'!E160*'Raw data'!G160) -> 51.534266 | H21: =IF(D21="-","-",G21/F21) -> 139.9134962 | I21: =IFERROR(VLOOKUP($G$6,'Raw data'!$A$30:$T$56,20,0),"") -> 150 | J21: =IFERROR(VLOOKUP($G$6,'Raw data'!$A$58:$T$84,20,0),"") -> 150 | K21: =IFERROR(VLOOKUP($G$6,'Raw data'!$A$86:$T$112,20,0),"") -> 63 | L21: =IFERROR(VLOOKUP($G$6,'Raw data'!$A$114:$T$140,20,0),"") -> 131 | M21: =IF(D21="-","-",'Raw data'!I160) -> 29.42826909
B22: 2835 0.5W 3V Gen3 | C22: =IFERROR(VLOOKUP($G$6,'Raw data'!$A$2:$U$28,3,0),"") -> BXEN-27E-11M-3CA-00-0-0 | D22: =IF(C22="-","-",IF($M$14>I22,"-",$M$14)) -> 120 | E22: =IF(D22="-","-",'Raw data'!D162+'Raw data'!F162) -> 2.99817133 | F22: =IF(D22="-","-",D22*E22/1000) -> 0.3597805597 | G22: =IF(D22="-","-",Simulator!K22*'Raw data'!E162*'Raw data'!G162) -> 56.54839898 | H22: =IF(D22="-","-",G22/F22) -> 157.1746929 | I22: =IFERROR(VLOOKUP($G$6,'Raw data'!$A$30:$T$56,3,0),"") -> 150 | J22: =IFERROR(VLOOKUP($G$6,'Raw data'!$A$58:$T$84,3,0),"") -> 150 | K22: =IFERROR(VLOOKUP($G$6,'Raw data'!$A$86:$T$112,3,0),"") -> 70 | L22: =IFERROR(VLOOKUP($G$6,'Raw data'!$A$114:$T$140,3,0),"") -> 156 | M22: =IF(D22="-","-",'Raw data'!I162) -> 33.66201701
B23: 2835 0.6W 6V | C23: =IFERROR(VLOOKUP($G$6,'Raw data'!$A$2:$U$28,21,0),"") -> BXEN-27E-12M-6A-00-0-0 | D23: =IF(C23="-","-",IF($M$14>I23,"-",$M$14)) -> 120 | E23: =IF(D23="-","-",'Raw data'!D161+'Raw data'!F161) -> 6.341811954 | F23: =IF(D23="-","-",D23*E23/1000) -> 0.7610174345 | G23: =IF(D23="-","-",Simulator!K23*'Raw data'!E161*'Raw data'!G161) -> 84.45363373 | H23: =IF(D23="-","-",G23/F23) -> 110.9746372 | I23: =IFERROR(VLOOKUP($G$6,'Raw data'!$A$30:$U$56,21,0),"") -> 120 | J23: =IFERROR(VLOOKUP($G$6,'Raw data'!$A$58:$U$84,21,0),"") -> 100 | K23: =IFERROR(VLOOKUP($G$6,'Raw data'!$A$86:$U$112,21,0),"") -> 75 | L23: =IFERROR(VLOOKUP($G$6,'Raw data'!$A$114:$U$140,21,0),"") -> 117 | M23: =IF(D23="-","-",'Raw data'!I161) -> 37.91210509
B24: 2835 1W 9V L | C24: =IFERROR(VLOOKUP($G$6,'Raw data'!$A$2:$Q$28,17,0),"") -> BXEN-27E-13H-98-00-0-0 | D24: =IF(C24="-","-",IF($M$14>I24,"-",$M$14)) -> 120 | E24: =IF(D24="-","-",'Raw data'!D157+'Raw data'!F157) -> 9.385057115 | F24: =IF(D24="-","-",D24*E24/1000) -> 1.126206854 | G24: =IF(D24="-","-",Simulator!K24*'Raw data'!E157*'Raw data'!G157) -> 128.3943604 | H24: =IF(D24="-","-",G24/F24) -> 114.0060194 | I24: =IFERROR(VLOOKUP($G$6,'Raw data'!$A$30:$Q$56,17,0),"") -> 120 | J24: =IFERROR(VLOOKUP($G$6,'Raw data'!$A$58:$Q$84,17,0),"") -> 100 | K24: =IFERROR(VLOOKUP($G$6,'Raw data'!$A$86:$Q$112,17,0),"") -> 115 | L24: =IFERROR(VLOOKUP($G$6,'Raw data'!$A$114:$Q$140,17,0),"") -> 124 | M24: =IF(D24="-","-",'Raw data'!I157) -> 40.84142957
B25: 2835 1W 9V Gen2 | C25: =IFERROR(VLOOKUP($G$6,'Raw data'!$A$2:$N$28,5,0),"") -> BXEN-27E-13H-9B-00-0-0 | D25: 120 | E25: =IF(D25="-","-",'Raw data'!D145+'Raw data'!F145) -> 9.71967281 | F25: 1.166360737 | G25: =IF(D25="-","-",Simulator!K25*'Raw data'!E145*'Raw data'!G145) -> 131.0885264 | H25: 112.3910659 | I25: =IFERROR(VLOOKUP($G$6,'Raw data'!$A$30:$N$56,5,0),"") -> 120 | J25: =IFERROR(VLOOKUP($G$6,'Raw data'!$A$58:$N$84,5,0),"") -> 100 | K25: =IFERROR(VLOOKUP($G$6,'Raw data'!$A$86:$N$112,5,0),"") -> 115 | L25: =IFERROR(VLOOKUP($G$6,'Raw data'!$A$114:$N$140,5,0),"") -> 121 | M25: =IF(D25="-","-",'Raw data'!I145) -> 36.71171035
B26: 2835 1W 9V Gen3 | C26: =IFERROR(VLOOKUP($G$6,'Raw data'!$A$2:$R$28,18,0),"") -> BXEN-27E-13H-9C-00-0-0 | D26: =IF(C26="-","-",IF($M$14>I26,"-",$M$14)) -> 120 | E26: =IF(D26="-","-",'Raw data'!D158+'Raw data'!F158) -> 9.701313609 | F26: =IF(D26="-","-",D26*E26/1000) -> 1.164157633 | G26: =IF(D26="-","-",Simulator!K26*'Raw data'!E158*'Raw data'!G158) -> 141.4890084 | H26: =IF(D26="-","-",G26/F26) -> 121.5376719 | I26: =IFERROR(VLOOKUP($G$6,'Raw data'!$A$30:$R$56,18,0),"") -> 120 | J26: =IFERROR(VLOOKUP($G$6,'Raw data'!$A$58:$R$84,18,0),"") -> 100 | K26: =IFERROR(VLOOKUP($G$6,'Raw data'!$A$86:$R$112,18,0),"") -> 125 | L26: =IFERROR(VLOOKUP($G$6,'Raw data'!$A$114:$R$140,18,0),"") -> 134 | M26: =IF(D26="-","-",'Raw data'!I158) -> 35.04743367
B27: 2835 1W 9V CRI90(99N) | C27: =IFERROR(VLOOKUP($G$6,'Raw data'!$A$2:$V$28,22,0),"") -> - | D27: =IF(C27="-","-",IF($M$14>I27,"-",$M$14)) -> - | E27: =IF(D27="-","-",'Raw data'!D163+'Raw data'!F163) -> - | F27: =IF(D27="-","-",D27*E27/1000) -> - | G27: =IF(D27="-","-",Simulator!K27*'Raw data'!E163*'Raw data'!G163) -> - | H27: =IF(D27="-","-",G27/F27) -> - | I27: =IFERROR(VLOOKUP($G$6,'Raw data'!$A$30:$V$56,22,0),"") -> - | J27: =IFERROR(VLOOKUP($G$6,'Raw data'!$A$58:$V$84,22,0),"") -> - | K27: =IFERROR(VLOOKUP($G$6,'Raw data'!$A$86:$V$112,22,0),"") -> - | L27: =IFERROR(VLOOKUP($G$6,'Raw data'!$A$114:$V$140,22,0),"") -> - | M27: =IF(D27="-","-",'Raw data'!I163) -> -
B28: 2835 1W 9V CRI90(9BN) | C28: =IFERROR(VLOOKUP($G$6,'Raw data'!$A$2:$W$28,23,0),"") -> - | D28: =IF(C28="-","-",IF($M$14>I28,"-",$M$14)) -> - | E28: =IF(D28="-","-",'Raw data'!D164+'Raw data'!F164) -> - | F28: =IF(D28="-","-",D28*E28/1000) -> - | G28: =IF(D28="-","-",Simulator!K28*'Raw data'!E164*'Raw data'!G164) -> - | H28: =IF(D28="-","-",G28/F28) -> - | I28: =IFERROR(VLOOKUP($G$6,'Raw data'!$A$30:$W$56,23,0),"") -> - | J28: =IFERROR(VLOOKUP($G$6,'Raw data'!$A$58:$W$84,23,0),"") -> - | K28: =IFERROR(VLOOKUP($G$6,'Raw data'!$A$86:$W$112,23,0),"") -> - | L28: =IFERROR(VLOOKUP($G$6,'Raw data'!$A$114:$W$140,23,0),"") -> - | M28: =IF(D28="-","-",'Raw data'!I164) -> -
B29: 2835 1W 9V CRI90(9CN) | C29: =IFERROR(VLOOKUP($G$6,'Raw data'!$A$2:$X$28,24,0),"") -> - | D29: =IF(C29="-","-",IF($M$14>I29,"-",$M$14)) -> - | E29: =IF(D29="-","-",'Raw data'!D165+'Raw data'!F165) -> - | F29: =IF(D29="-","-",D29*E29/1000) -> - | G29: =IF(D29="-","-",Simulator!K29*'Raw data'!E165*'Raw data'!G165) -> - | H29: =IF(D29="-","-",G29/F29) -> - | I29: =IFERROR(VLOOKUP($G$6,'Raw data'!$A$30:$X$56,24,0),"") -> - | J29: =IFERROR(VLOOKUP($G$6,'Raw data'!$A$58:$X$84,24,0),"") -> - | K29: =IFERROR(VLOOKUP($G$6,'Raw data'!$A$86:$X$112,24,0),"") -> - | L29: =IFERROR(VLOOKUP($G$6,'Raw data'!$A$114:$X$140,24,0),"") -> - | M29: =IF(D29="-","-",'Raw data'!I165) -> -
B30: 2835 1W 12V Gen2 | C30: =IFERROR(VLOOKUP($G$6,'Raw data'!$A$2:$N$28,6,0),"") -> BXEN-27E-14H-12B-00-0-0 | D30: - | E30: =IF(D30="-","-",'Raw data'!D146+'Raw data'!F146) -> - | F30: - | G30: =IF(D30="-","-",Simulator!K30*'Raw data'!E146*'Raw data'!G146) -> - | H30: - | I30: =IFERROR(VLOOKUP($G$6,'Raw data'!$A$30:$N$56,6,0),"") -> 90 | J30: =IFERROR(VLOOKUP($G$6,'Raw data'!$A$58:$N$84,6,0),"") -> 75 | K30: =IFERROR(VLOOKUP($G$6,'Raw data'!$A$86:$N$112,6,0),"") -> 118 | L30: =IFERROR(VLOOKUP($G$6,'Raw data'!$A$114:$N$140,6,0),"") -> 129 | M30: =IF(D30="-","-",'Raw data'!I146) -> -
B31: 2835 1W 18V | C31: =IFERROR(VLOOKUP($G$6,'Raw data'!$A$2:$O$28,15,0),"") -> BXEN-27E-11H-18A-00-0-0 | D31: =IF(C31="-","-",IF($M$14>I31,"-",$M$14)) -> - | E31: =IF(D31="-","-",'Raw data'!D155+'Raw data'!F155) -> - | F31: =IF(D31="-","-",D31*E31/1000) -> - | G31: =IF(D31="-","-",Simulator!K31*'Raw data'!E155*'Raw data'!G155) -> - | H31: =IF(D31="-","-",G31/F31) -> - | I31: =IFERROR(VLOOKUP($G$6,'Raw data'!$A$30:$O$56,15,0),"") -> 60 | J31: =IFERROR(VLOOKUP($G$6,'Raw data'!$A$58:$O$84,15,0),"") -> 50 | K31: =IFERROR(VLOOKUP($G$6,'Raw data'!$A$86:$O$112,15,0),"") -> 120 | L31: =IFERROR(VLOOKUP($G$6,'Raw data'!$A$114:$O$140,15,0),"") -> 133 | M31: =IF(D31="-","-",'Raw data'!I155) -> -
B32: 3030 1W 6V | C32: =IFERROR(VLOOKUP($G$6,'Raw data'!$A$2:$N$28,7,0),"") -> BXEM-27E0000-0-000 | D32: 120 | E32: =IF(D32="-","-",'Raw data'!D147+'Raw data'!F147) -> 6.088675692 | F32: 0.7306410831 | G32: =IF(D32="-","-",Simulator!K32*'Raw data'!E147*'Raw data'!G147) -> 100.6078832 | H32: 137.6980921 | I32: =IFERROR(VLOOKUP($G$6,'Raw data'!$A$30:$N$56,7,0),"") -> 240 | J32: =IFERROR(VLOOKUP($G$6,'Raw data'!$A$58:$N$84,7,0),"") -> 150 | K32: =IFERROR(VLOOKUP($G$6,'Raw data'!$A$86:$N$112,7,0),"") -> 125 | L32: =IFERROR(VLOOKUP($G$6,'Raw data'!$A$114:$N$140,7,0),"") -> 133 | M32: =IF(D32="-","-",'Raw data'!I147) -> 33.80138962
B33: 3030 1W 6V(S) | C33: =IFERROR(VLOOKUP($G$6,'Raw data'!$A$2:$Y$28,25,0),"") -> BXEM-27E12H-6A-00-0-0 | D33: 120 | E33: =IF(D33="-","-",'Raw data'!D166+'Raw data'!F166) -> 5.849828471 | F33: 0.7019794165 | G33: =IF(D33="-","-",Simulator!K33*'Raw data'!E166*'Raw data'!G166) -> 107.447436 | H33: =IF(D33="-","-",G33/F33) -> 153.0635137 | I33: =IFERROR(VLOOKUP($G$6,'Raw data'!$A$30:$Y$56,25,0),"") -> 240 | J33: =IFERROR(VLOOKUP($G$6,'Raw data'!$A$58:$Y$84,25,0),"") -> 150 | K33: =IFERROR(VLOOKUP($G$6,'Raw data'!$A$86:$Y$112,25,0),"") -> 133 | L33: =IFERROR(VLOOKUP($G$6,'Raw data'!$A$114:$Y$140,25,0),"") -> 146 | M33: =IF(D33="-","-",'Raw data'!I166) -> 33.44559851
B34: 5050 1W 24V | C34: =IFERROR(VLOOKUP($G$6,'Raw data'!$A$2:$N$28,8,0),"") -> BXEP-27E-181-24A-00-00-0 | D34: 120 | E34: =IF(D34="-","-",'Raw data'!D148+'Raw data'!F148) -> 23.45854945 | F34: 2.815025934 | G34: =IF(D34="-","-",Simulator!K34*'Raw data'!E148*'Raw data'!G148) -> 404.8726999 | H34: 143.8255666 | I34: =IFERROR(VLOOKUP($G$6,'Raw data'!$A$30:$N$56,8,0),"") -> 240 | J34: =IFERROR(VLOOKUP($G$6,'Raw data'!$A$58:$N$84,8,0),"") -> 45 | K34: =IFERROR(VLOOKUP($G$6,'Raw data'!$A$86:$N$112,8,0),"") -> 163 | L34: =IFERROR(VLOOKUP($G$6,'Raw data'!$A$114:$N$140,8,0),"") -> 165 | M34: =IF(D34="-","-",'Raw data'!I148) -> 33.78478259
B35: 5050 3W 9V | C35: =IFERROR(VLOOKUP($G$6,'Raw data'!$A$2:$N$28,9,0),"") -> BXEP-27E-233-09A-00-00-0 | D35: 120 | E35: =IF(D35="-","-",'Raw data'!D149+'Raw data'!F149) -> 8.46522736 | F35: 1.015827283 | G35: =IF(D35="-","-",Simulator!K35*'Raw data'!E149*'Raw data'!G149) -> 158.0144123 | H35: 155.5524398 | I35: =IFERROR(VLOOKUP($G$6,'Raw data'!$A$30:$N$56,9,0),"") -> 480 | J35: =IFERROR(VLOOKUP($G$6,'Raw data'!$A$58:$N$84,9,0),"") -> 320 | K35: =IFERROR(VLOOKUP($G$6,'Raw data'!$A$86:$N$112,9,0),"") -> 389 | L35: =IFERROR(VLOOKUP($G$6,'Raw data'!$A$114:$N$140,9,0),"") -> 131 | M35: =IF(D35="-","-",'Raw data'!I149) -> 28.35933997
B36: 5050 3W 18V | C36: =IFERROR(VLOOKUP($G$6,'Raw data'!$A$2:$N$28,10,0),"") -> BXEP-27E-163-18A-00-00-0 | D36: 120 | E36: =IF(D36="-","-",'Raw data'!D150+'Raw data'!F150) -> 17.83249452 | F36: 2.139899342 | G36: =IF(D36="-","-",Simulator!K36*'Raw data'!E150*'Raw data'!G150) -> 298.2268503 | H36: 139.3648965 | I36: =IFERROR(VLOOKUP($G$6,'Raw data'!$A$30:$N$56,10,0),"") -> 240 | J36: =IFERROR(VLOOKUP($G$6,'Raw data'!$A$58:$N$84,10,0),"") -> 160 | K36: =IFERROR(VLOOKUP($G$6,'Raw data'!$A$86:$N$112,10,0),"") -> 389 | L36: =IFERROR(VLOOKUP($G$6,'Raw data'!$A$114:$N$140,10,0),"") -> 131 | M36: =IF(D36="-","-",'Raw data'!I150) -> 32.11929322
B37: 5050 5W 9V | C37: =IFERROR(VLOOKUP($G$6,'Raw data'!$A$2:$N$28,11,0),"") -> BXEP-27E-435-09A-00-00-0 | D37: 120 | E37: =IF(D37="-","-",'Raw data'!D151+'Raw data'!F151) -> 8.208518717 | F37: 0.985022246 | G37: =IF(D37="-","-",Simulator!K37*'Raw data'!E151*'Raw data'!G151) -> 153.99407 | H37: 156.3356266 | I37: =IFERROR(VLOOKUP($G$6,'Raw data'!$A$30:$N$56,11,0),"") -> 800 | J37: =IFERROR(VLOOKUP($G$6,'Raw data'!$A$58:$N$84,11,0),"") -> 500 | K37: =IFERROR(VLOOKUP($G$6,'Raw data'!$A$86:$N$112,11,0),"") -> 579 | L37: =IFERROR(VLOOKUP($G$6,'Raw data'!$A$114:$N$140,11,0),"") -> 125 | M37: =IF(D37="-","-",'Raw data'!I151) -> 26.87350483
B38: 5050 5W 36V | C38: =IFERROR(VLOOKUP($G$6,'Raw data'!$A$2:$N$28,12,0),"") -> BXEP-27E-1C5-36A-00-00-0 | D38: 120 | E38: =IF(D38="-","-",'Raw data'!D152+'Raw data'!F152) -> 36.80326912 | F38: 4.416392294 | G38: =IF(D38="-","-",Simulator!K38*'Raw data'!E152*'Raw data'!G152) -> 550.4984607 | H38: 124.6489044 | I38: =IFERROR(VLOOKUP($G$6,'Raw data'!$A$30:$N$56,12,0),"") -> 200 | J38: =IFERROR(VLOOKUP($G$6,'Raw data'!$A$58:$N$84,12,0),"") -> 125 | K38: =IFERROR(VLOOKUP($G$6,'Raw data'!$A$86:$N$112,12,0),"") -> 579 | L38: =IFERROR(VLOOKUP($G$6,'Raw data'!$A$114:$N$140,12,0),"") -> 125 | M38: =IF(D38="-","-",'Raw data'!I152) -> 33.43087056
B39: 5050 5W 9V Gen2 | C39: =IFERROR(VLOOKUP($G$6,'Raw data'!$A$2:$N$28,13,0),"") -> BXEP-27E-435-09B-00-00-0 | D39: 120 | E39: =IF(D39="-","-",'Raw data'!D153+'Raw data'!F153) -> 8.07627182 | F39: 0.9691526184 | G39: =IF(D39="-","-",Simulator!K39*'Raw data'!E153*'Raw data'!G153) -> 156.6697808 | H39: 161.6564593 | I39: =IFERROR(VLOOKUP($G$6,'Raw data'!$A$30:$N$56,13,0),"") -> 960 | J39: =IFERROR(VLOOKUP($G$6,'Raw data'!$A$58:$N$84,13,0),"") -> 500 | K39: =IFERROR(VLOOKUP($G$6,'Raw data'!$A$86:$N$112,13,0),"") -> 615 | L39: =IFERROR(VLOOKUP($G$6,'Raw data'!$A$114:$N$140,13,0),"") -> 139 | M39: =IF(D39="-","-",'Raw data'!I153) -> 26.84343656
B40: 5050 5W 36V Gen2 | C40: =IFERROR(VLOOKUP($G$6,'Raw data'!$A$2:$N$28,14,0),"") -> BXEP-27E-1C5-36B-00-00-0 | D40: 120 | E40: =IF(D40="-","-",'Raw data'!D154+'Raw data'!F154) -> 35.16600797 | F40: 4.219920956 | G40: =IF(D40="-","-",Simulator!K40*'Raw data'!E154*'Raw data'!G154) -> 228.6069745 | H40: 54.17328354 | I40: =IFERROR(VLOOKUP($G$6,'Raw data'!$A$30:$N$56,14,0),"") -> 240 | J40: =IFERROR(VLOOKUP($G$6,'Raw data'!$A$58:$N$84,14,0),"") -> 125 | K40: =IFERROR(VLOOKUP($G$6,'Raw data'!$A$8:$N$112,14,0),"") -> 240 | L40: =IFERROR(VLOOKUP($G$6,'Raw data'!$A$114:$N$140,14,0),"") -> 139 | M40: =IF(D40="-","-",'Raw data'!I154) -> 33.05692848
B43: Drive Current Needed for Required Lumens | M43: Section 3
B44: Calculate drive current required for chosen lumen output | K44: ENTER REQUIRED LUMENS(>0lm): | M44: 107
B45: SMD 3030, 2835, 5050
B46: Product | C46: Part Number | D46: Drive Current (mA) | E46: Voltage (V) | F46: Power (W) | G46: ="Lumen DC @ Case = "&G8&" °C" -> Lumen DC @ Case = 25 °C | H46: ="Efficacy DC @ Case = "&G8&" °C" -> Efficacy DC @ Case = 25 °C | I46: Max Drive Current (mA) | J46: Typical Current (mA) | K46: Typical Pulsed Lumens @ Case=25°C | L46: Typical Pulsed Efficacy @ Case=25°C | M46: Tj (°C)
B47: 2835 0.2W 3V | C47: =IFERROR(VLOOKUP($G$6,'Raw data'!$A$2:$N$28,2,0),"") -> BXEN-27E-11L-3AA-00-0-0 | D47: =IF(C47="-","-",IF(Q47>I47,"-",'Raw data'!H143)) -> - | E47: =IF(D47="-","-",'Raw data'!P143+'Raw data'!S143) -> - | F47: =IF(D47="-","-",D47*E47/1000) -> - | G47: =IF(C47="-","-",IF(D47="-","-",$M$44)) -> - | H47: =IF(D47="-","-",G47/F47) -> - | I47: =IFERROR(VLOOKUP($G$6,'Raw data'!$A$30:$N$56,2,0),"") -> 100 | J47: =IFERROR(VLOOKUP($G$6,'Raw data'!$A$58:$N$84,2,0),"") -> 60 | K47: =IFERROR(VLOOKUP($G$6,'Raw data'!$A$86:$N$112,2,0),"") -> 26 | L47: =IFERROR(VLOOKUP($G$6,'Raw data'!$A$114:$N$140,2,0),"") -> 144 | M47: =IF(C47="-","-",IF(D47="-","-",'Raw data'!N143)) -> - | Q47: ='Raw data'!H143 -> 450.4158216
B48: 2835 0.2W 3V L | C48: =IFERROR(VLOOKUP($G$6,'Raw data'!$A$2:$P$28,16,0),"") -> BXEN-27E-11L-37A-00-0-0 | D48: =IF(C48="-","-",IF(Q48>I48,"-",'Raw data'!H156)) -> - | E48: =IF(D48="-","-",'Raw data'!P156+'Raw data'!S156) -> - | F48: =IF(D48="-","-",D48*E48/1000) -> - | G48: =IF(C48="-","-",IF(D48="-","-",$M$44)) -> - | H48: =IF(D48="-","-",G48/F48) -> - | I48: =IFERROR(VLOOKUP($G$6,'Raw data'!$A$30:$P$56,16,0),"") -> 100 | J48: =IFERROR(VLOOKUP($G$6,'Raw data'!$A$58:$O$84,15,0),"") -> 50 | K48: =IFERROR(VLOOKUP($G$6,'Raw data'!$A$86:$P$112,16,0),"") -> 24 | L48: =IFERROR(VLOOKUP($G$6,'Raw data'!$A$114:$O$140,15,0),"") -> 133 | M48: =IF(C48="-","-",IF(D48="-","-",'Raw data'!N156)) -> - | Q48: ='Raw data'!H156 -> -
B49: 2835 0.5W 3V | C49: =IFERROR(VLOOKUP($G$6,'Raw data'!$A$2:$N$28,4,0),"") -> BXEN-27E-11M-39A-00-0-0 | D49: =IF(C49="-","-",IF(Q49>I49,"-",'Raw data'!H144)) -> - | E49: =IF(D49="-","-",'Raw data'!P144+'Raw data'!S144) -> - | F49: =IF(D49="-","-",D49*E49/1000) -> - | G49: =IF(C49="-","-",IF(D49="-","-",$M$44)) -> - | H49: =IF(D49="-","-",G49/F49) -> - | I49: =IFERROR(VLOOKUP($G$6,'Raw data'!$A$30:$N$56,4,0),"") -> 150 | J49: =IFERROR(VLOOKUP($G$6,'Raw data'!$A$58:$N$84,4,0),"") -> 150 | K49: =IFERROR(VLOOKUP($G$6,'Raw data'!$A$86:$N$112,4,0),"") -> 60 | L49: =IFERROR(VLOOKUP($G$6,'Raw data'!$A$114:$N$140,4,0),"") -> 125 | M49: =IF(C49="-","-",IF(D49="-","-",'Raw data'!N144)) -> - | Q49: ='Raw data'!H144 -> 340.1368943
B50: 2835 0.5W 3V Gen1 | C50: =IFERROR(VLOOKUP($G$6,'Raw data'!$A$2:$S$28,19,0),"") -> BXEN-27E-11M-3A-00-0-0 | D50: =IF(C50="-","-",IF(Q50>I50,"-",'Raw data'!H159)) -> - | E50: =IF(D50="-","-",'Raw data'!P159+'Raw data'!S159) -> - | F50: =IF(D50="-","-",D50*E50/1000) -> - | G50: =IF(C50="-","-",IF(D50="-","-",$M$44)) -> - | H50: =IF(D50="-","-",G50/F50) -> - | I50: =IFERROR(VLOOKUP($G$6,'Raw data'!$A$30:$S$56,19,0),"") -> 150 | J50: =IFERROR(VLOOKUP($G$6,'Raw data'!$A$58:$S$84,19,0),"") -> 150 | K50: =IFERROR(VLOOKUP($G$6,'Raw data'!$A$86:$S$112,19,0),"") -> 62 | L50: =IFERROR(VLOOKUP($G$6,'Raw data'!$A$114:$S$140,19,0),"") -> 125 | M50: =IF(C50="-","-",IF(D50="-","-",'Raw data'!N159)) -> - | Q50: ='Raw data'!H159 -> 330.8207397
B51: 2835 0.5W 3V Gen 2 | C51: =IFERROR(VLOOKUP($G$6,'Raw data'!$A$2:$T$28,20,0),"") -> BXEN-27E-11M-3AA-00-00-0 | D51: =IF(C51="-","-",IF(Q51>I51,"-",'Raw data'!H160)) -> - | E51: =IF(D51="-","-",'Raw data'!P160+'Raw data'!S160) -> - | F51: =IF(D51="-","-",D51*E51/1000) -> - | G51: =IF(C51="-","-",IF(D51="-","-",$M$44)) -> - | H51: =IF(D51="-","-",G51/F51) -> - | I51: =IFERROR(VLOOKUP($G$6,'Raw data'!$A$30:$T$56,20,0),"") -> 150 | J51: =IFERROR(VLOOKUP($G$6,'Raw data'!$A$58:$T$84,20,0),"") -> 150 | K51: =IFERROR(VLOOKUP($G$6,'Raw data'!$A$86:$T$112,20,0),"") -> 63 | L51: =IFERROR(VLOOKUP($G$6,'Raw data'!$A$114:$T$140,20,0),"") -> 131 | M51: =IF(C51="-","-",IF(D51="-","-",'Raw data'!N160)) -> - | Q51: ='Raw data'!H160 -> 316.681261
B52: 2835 0.5W 3V Gen3 | C52: =IFERROR(VLOOKUP($G$6,'Raw data'!$A$2:$T$28,3,0),"") -> BXEN-27E-11M-3CA-00-0-0 | D52: =IF(C52="-","-",IF(Q52>I52,"-",'Raw data'!H162)) -> 254.9106608 | E52: =IF(D52="-","-",'Raw data'!P162+'Raw data'!S162) -> 3.273516913 | F52: =IF(D52="-","-",D52*E52/1000) -> 0.8344543595 | G52: =IF(C52="-","-",IF(D52="-","-",$M$44)) -> 107 | H52: =IF(D52="-","-",G52/F52) -> 128.2275043 | I52: =IFERROR(VLOOKUP($G$6,'Raw data'!$A$30:$T$56,3,0),"") -> 150 | J52: =IFERROR(VLOOKUP($G$6,'Raw data'!$A$58:$T$84,3,0),"") -> 150 | K52: =IFERROR(VLOOKUP($G$6,'Raw data'!$A$86:$T$112,3,0),"") -> 70 | L52: =IFERROR(VLOOKUP($G$6,'Raw data'!$A$114:$T$140,3,0),"") -> 156 | M52: =IF(C52="-","-",IF(D52="-","-",'Raw data'!N162)) -> 44.36697922
B53: 2835 0.6W 6V | C53: =IFERROR(VLOOKUP($G$6,'Raw data'!$A$2:$U$28,21,0),"") -> BXEN-27E-12M-6A-00-0-0 | D53: =IF(C53="-","-",IF(Q53>I53,"-",'Raw data'!H161)) -> - | E53: =IF(D53="-","-",'Raw data'!P161+'Raw data'!S161) -> - | F53: =IF(D53="-","-",D53*E53/1000) -> - | G53: =IF(C53="-","-",IF(D53="-","-",$M$44)) -> - | H53: =IF(D53="-","-",G53/F53) -> - | I53: =IFERROR(VLOOKUP($G$6,'Raw data'!$A$30:$U$56,21,0),"") -> 120 | J53: =IFERROR(VLOOKUP($G$6,'Raw data'!$A$58:$U$84,21,0),"") -> 100 | K53: =IFERROR(VLOOKUP($G$6,'Raw data'!$A$86:$U$112,21,0),"") -> 75 | L53: =IFERROR(VLOOKUP($G$6,'Raw data'!$A$114:$U$140,21,0),"") -> 117 | M53: =IF(C53="-","-",IF(D53="-","-",'Raw data'!N161)) -> - | Q53: ='Raw data'!H161 -> 168.7619269
B54: 2835 1W 9V L | C54: =IFERROR(VLOOKUP($G$6,'Raw data'!$A$2:$Q$28,17,0),"") -> BXEN-27E-13H-98-00-0-0 | D54: =IF(C54="-","-",IF(Q54>I54,"-",'Raw data'!H157)) -> 94.19322865 | E54: =IF(D54="-","-",'Raw data'!P157+'Raw data'!S157) -> 9.153509792 | F54: =IF(D54="-","-",D54*E54/1000) -> 0.8621986408 | G54: =IF(C54="-","-",IF(D54="-","-",$M$44)) -> 107 | H54: =IF(D54="-","-",G54/F54) -> 124.1013323 | I54: =IFERROR(VLOOKUP($G$6,'Raw data'!$A$30:$Q$56,17,0),"") -> 120 | J54: =IFERROR(VLOOKUP($G$6,'Raw data'!$A$58:$Q$84,17,0),"") -> 100 | K54: =IFERROR(VLOOKUP($G$6,'Raw data'!$A$86:$Q$112,17,0),"") -> 115 | L54: =IFERROR(VLOOKUP($G$6,'Raw data'!$A$114:$Q$140,17,0),"") -> 124 | M54: =IF(C54="-","-",IF(D54="-","-",'Raw data'!N157)) -> 36.73544293 | Q54: ='Raw data'!H157 -> 94.19322865
B55: 2835 1W 9V Gen2 | C55: =IFERROR(VLOOKUP($G$6,'Raw data'!$A$2:$N$28,5,0),"") -> BXEN-27E-13H-9B-00-0-0 | D55: =IF(C55="-","-",IF(Q55>I55,"-",'Raw data'!H145)) -> 93.67477356 | E55: =IF(D55="-","-",'Raw data'!P145+'Raw data'!S145) -> 9.386890253 | F55: 0.8793148189 | G55: 107 | H55: 121.6856554 | I55: =IFERROR(VLOOKUP($G$6,'Raw data'!$A$30:$N$56,5,0),"") -> 120 | J55: =IFERROR(VLOOKUP($G$6,'Raw data'!$A$58:$N$84,5,0),"") -> 100 | K55: =IFERROR(VLOOKUP($G$6,'Raw data'!$A$86:$N$112,5,0),"") -> 115 | L55: =IFERROR(VLOOKUP($G$6,'Raw data'!$A$114:$N$140,5,0),"") -> 121 | M55: =IF(C55="-","-",IF(D55="-","-",'Raw data'!N145)) -> 33.63436339 | Q55: ='Raw data'!H145 -> 93.67477356
B56: 2835 1W 9V Gen3 | C56: =IFERROR(VLOOKUP($G$6,'Raw data'!$A$2:$R$28,18,0),"") -> BXEN-27E-13H-9C-00-0-0 | D56: =IF(C56="-","-",IF(Q56>I56,"-",'Raw data'!H158)) -> 84.39491725 | E56: =IF(D56="-","-",'Raw data'!P158+'Raw data'!S158) -> 9.264059695 | F56: =IF(D56="-","-",D56*E56/1000) -> 0.7818395513 | G56: =IF(C56="-","-",IF(D56="-","-",$M$44)) -> 107 | H56: =IF(D56="-","-",G56/F56) -> 136.8567244 | I56: =IFERROR(VLOOKUP($G$6,'Raw data'!$A$30:$R$56,18,0),"") -> 120 | J56: =IFERROR(VLOOKUP($G$6,'Raw data'!$A$58:$R$84,18,0),"") -> 100 | K56: =IFERROR(VLOOKUP($G$6,'Raw data'!$A$86:$R$112,18,0),"") -> 125 | L56: =IFERROR(VLOOKUP($G$6,'Raw data'!$A$114:$R$140,18,0),"") -> 134 | M56: =IF(C56="-","-",IF(D56="-","-",'Raw data'!N158)) -> 31.62271514 | Q56: ='Raw data'!H158 -> 84.39491725
B57: 2835 1W 9V CRI90(99N) | C57: =IFERROR(VLOOKUP($G$6,'Raw data'!$A$2:$V$28,22,0),"") -> - | D57: =IF(C57="-","-",IF(Q57>I57,"-",'Raw data'!H163)) -> - | E57: =IF(D57="-","-",'Raw data'!P163+'Raw data'!S163) -> - | F57: =IF(D57="-","-",D57*E57/1000) -> - | G57: =IF(C57="-","-",IF(D57="-","-",$M$44)) -> - | H57: =IF(D57="-","-",G57/F57) -> - | I57: =IFERROR(VLOOKUP($G$6,'Raw data'!$A$30:$V$56,22,0),"") -> - | J57: =IFERROR(VLOOKUP($G$6,'Raw data'!$A$58:$V$84,22,0),"") -> - | K57: =IFERROR(VLOOKUP($G$6,'Raw data'!$A$86:$V$112,22,0),"") -> - | L57: =IFERROR(VLOOKUP($G$6,'Raw data'!$A$114:$V$140,22,0),"") -> - | M57: =IF(C57="-","-",IF(D57="-","-",'Raw data'!N163)) -> -
B58: 2835 1W 9V CRI90(9BN) | C58: =IFERROR(VLOOKUP($G$6,'Raw data'!$A$2:$W$28,23,0),"") -> - | D58: =IF(C58="-","-",IF(Q58>I58,"-",'Raw data'!H164)) -> - | E58: =IF(D58="-","-",'Raw data'!P164+'Raw data'!S164) -> - | F58: =IF(D58="-","-",D58*E58/1000) -> - | G58: =IF(C58="-","-",IF(D58="-","-",$M$44)) -> - | H58: =IF(D58="-","-",G58/F58) -> - | I58: =IFERROR(VLOOKUP($G$6,'Raw data'!$A$30:$W$56,23,0),"") -> - | J58: =IFERROR(VLOOKUP($G$6,'Raw data'!$A$58:$W$84,23,0),"") -> - | K58: =IFERROR(VLOOKUP($G$6,'Raw data'!$A$86:$W$112,23,0),"") -> - | L58: =IFERROR(VLOOKUP($G$6,'Raw data'!$A$114:$W$140,23,0),"") -> - | M58: =IF(C58="-","-",IF(D58="-","-",'Raw data'!N164)) -> -
B59: 2835 1W 9V CRI90(9CN) | C59: =IFERROR(VLOOKUP($G$6,'Raw data'!$A$2:$X$28,24,0),"") -> - | D59: =IF(C59="-","-",IF(Q59>I59,"-",'Raw data'!H165)) -> - | E59: =IF(D59="-","-",'Raw data'!P165+'Raw data'!S165) -> - | F59: =IF(D59="-","-",D59*E59/1000) -> - | G59: =IF(C59="-","-",IF(D59="-","-",$M$44)) -> - | H59: =IF(D59="-","-",G59/F59) -> - | I59: =IFERROR(VLOOKUP($G$6,'Raw data'!$A$30:$X$56,24,0),"") -> - | J59: =IFERROR(VLOOKUP($G$6,'Raw data'!$A$58:$X$84,24,0),"") -> - | K59: =IFERROR(VLOOKUP($G$6,'Raw data'!$A$86:$X$112,24,0),"") -> - | L59: =IFERROR(VLOOKUP($G$6,'Raw data'!$A$114:$X$140,24,0),"") -> - | M59: =IF(C59="-","-",IF(D59="-","-",'Raw data'!N165)) -> -
B60: 2835 1W 12V Gen2 | C60: =IFERROR(VLOOKUP($G$6,'Raw data'!$A$2:$N$28,6,0),"") -> BXEN-27E-14H-12B-00-0-0 | D60: =IF(C60="-","-",IF(Q60>I60,"-",'Raw data'!H146)) -> 67.83778497 | E60: =IF(D60="-","-",'Raw data'!P146+'Raw data'!S146) -> 12.02944852 | F60: 0.8160511422 | G60: 107 | H60: 131.1192332 | I60: =IFERROR(VLOOKUP($G$6,'Raw data'!$A$30:$N$56,2,0),"") -> 100 | J60: =IFERROR(VLOOKUP($G$6,'Raw data'!$A$58:$N$84,6,0),"") -> 75 | K60: =IFERROR(VLOOKUP($G$6,'Raw data'!$A$86:$N$112,6,0),"") -> 118 | L60: =IFERROR(VLOOKUP($G$6,'Raw data'!$A$114:$N$140,6,0),"") -> 129 | M60: =IF(C60="-","-",IF(D60="-","-",'Raw data'!N146)) -> 33.06526025 | Q60: ='Raw data'!H146 -> 67.83778497
B61: 2835 1W 18V | C61: =IFERROR(VLOOKUP($G$6,'Raw data'!$A$2:$O$28,15,0),"") -> BXEN-27E-11H-18A-00-0-0 | D61: =IF(C61="-","-",IF(Q61>I61,"-",'Raw data'!H155)) -> 45.69220995 | E61: =IF(D61="-","-",'Raw data'!P155+'Raw data'!S155) -> 18.13074478 | F61: =IF(D61="-","-",D61*E61/1000) -> 0.8284337969 | G61: =IF(C61="-","-",IF(D61="-","-",$M$44)) -> 107 | H61: =IF(D61="-","-",G61/F61) -> 129.1593853 | I61: =IFERROR(VLOOKUP($G$6,'Raw data'!$A$30:$O$56,15,0),"") -> 60 | J61: =IFERROR(VLOOKUP($G$6,'Raw data'!$A$58:$O$84,15,0),"") -> 50 | K61: =IFERROR(VLOOKUP($G$6,'Raw data'!$A$86:$O$112,15,0),"") -> 120 | L61: =IFERROR(VLOOKUP($G$6,'Raw data'!$A$114:$O$140,15,0),"") -> 133 | M61: =IF(C61="-","-",IF(D61="-","-",'Raw data'!N147)) -> 34.30863974 | Q61: ='Raw data'!H155 -> 45.69220995
B62: 3030 1W 6V | C62: =IFERROR(VLOOKUP($G$6,'Raw data'!$A$2:$N$28,7,0),"") -> BXEM-27E0000-0-000 | D62: =IF(C62="-","-",IF(Q62>I62,"-",'Raw data'!H147)) -> 128.8526271 | E62: =IF(D62="-","-",'Raw data'!P147+'Raw data'!S147) -> 6.129174034 | F62: 0.7897601764 | G62: 107 | H62: 135.4841675 | I62: =IFERROR(VLOOKUP($G$6,'Raw data'!$A$30:$N$56,7,0),"") -> 240 | J62: =IFERROR(VLOOKUP($G$6,'Raw data'!$A$58:$N$84,7,0),"") -> 150 | K62: =IFERROR(VLOOKUP($G$6,'Raw data'!$A$86:$N$112,7,0),"") -> 125 | L62: =IFERROR(VLOOKUP($G$6,'Raw data'!$A$114:$N$140,7,0),"") -> 133 | M62: =IF(C62="-","-",IF(D62="-","-",'Raw data'!N147)) -> 34.30863974 | Q62: ='Raw data'!H147 -> 128.8526271
B63: 3031 1W 6V(S) | C63: =IFERROR(VLOOKUP($G$6,'Raw data'!$A$2:$Y$28,25,0),"") -> BXEM-27E12H-6A-00-0-0 | D63: =IF(C63="-","-",IF(Q63>I63,"-",'Raw data'!H166)) -> 119.4224279 | E63: =IF(D63="-","-",'Raw data'!P166+'Raw data'!S166) -> 5.847238639 | F63: 0.698291435 | G63: 107 | H63: 153.2311505 | I63: =IFERROR(VLOOKUP($G$6,'Raw data'!$A$30:$Y$56,25,0),"") -> 240 | J63: =IFERROR(VLOOKUP($G$6,'Raw data'!$A$58:$Y$84,25,0),"") -> 150 | K63: =IFERROR(VLOOKUP($G$6,'Raw data'!$A$86:$Y$112,25,0),"") -> 133 | L63: =IFERROR(VLOOKUP($G$6,'Raw data'!$A$114:$Y$140,25,0),"") -> 146 | M63: =IF(C63="-","-",IF(D63="-","-",'Raw data'!N166)) -> 33.27441651
B64: 5050 1W 24V | C64: =IFERROR(VLOOKUP($G$6,'Raw data'!$A$2:$N$28,8,0),"") -> BXEP-27E-181-24A-00-00-0 | D64: =IF(C64="-","-",IF(Q64>I64,"-",'Raw data'!H148)) -> 29.35551709 | E64: =IF(D64="-","-",'Raw data'!P148+'Raw data'!S148) -> 21.54789035 | F64: 0.6325494632 | G64: 107 | H64: 169.156732 | I64: =IFERROR(VLOOKUP($G$6,'Raw data'!$A$30:$N$56,8,0),"") -> 240 | J64: =IFERROR(VLOOKUP($G$6,'Raw data'!$A$58:$N$84,8,0),"") -> 45 | K64: =IFERROR(VLOOKUP($G$6,'Raw data'!$A$86:$N$112,8,0),"") -> 163 | L64: =IFERROR(VLOOKUP($G$6,'Raw data'!$A$114:$N$140,8,0),"") -> 165 | M64: =IF(C64="-","-",IF(D64="-","-",'Raw data'!N148)) -> 26.95975897 | Q64: ='Raw data'!H148 -> 29.35551709
B65: 5050 3W 9V | C65: =IFERROR(VLOOKUP($G$6,'Raw data'!$A$2:$N$28,9,0),"") -> BXEP-27E-233-09A-00-00-0 | D65: =IF(C65="-","-",IF(Q65>I65,"-",'Raw data'!H149)) -> 79.82350928 | E65: =IF(D65="-","-",'Raw data'!P149+'Raw data'!S149) -> 8.261917184 | F65: 0.659495223 | G65: 107 | H65: 162.2452995 | I65: =IFERROR(VLOOKUP($G$6,'Raw data'!$A$30:$N$56,9,0),"") -> 480 | J65: =IFERROR(VLOOKUP($G$6,'Raw data'!$A$58:$N$84,9,0),"") -> 320 | K65: =IFERROR(VLOOKUP($G$6,'Raw data'!$A$86:$N$112,9,0),"") -> 389 | L65: =IFERROR(VLOOKUP($G$6,'Raw data'!$A$114:$N$140,9,0),"") -> 131 | M65: =IF(C65="-","-",IF(D65="-","-",'Raw data'!N149)) -> 27.17044309 | Q65: ='Raw data'!H149 -> 79.82350928
B66: 5050 3W 18V | C66: =IFERROR(VLOOKUP($G$6,'Raw data'!$A$2:$N$28,10,0),"") -> BXEP-27E-163-18A-00-00-0 | D66: =IF(C66="-","-",IF(Q66>I66,"-",'Raw data'!H150)) -> 39.91033559 | E66: =IF(D66="-","-",'Raw data'!P150+'Raw data'!S150) -> 16.50349577 | F66: 0.6586600547 | G66: 107 | H66: 162.4510235 | I66: =IFERROR(VLOOKUP($G$6,'Raw data'!$A$30:$N$56,10,0),"") -> 240 | J66: =IFERROR(VLOOKUP($G$6,'Raw data'!$A$58:$N$84,10,0),"") -> 160 | K66: =IFERROR(VLOOKUP($G$6,'Raw data'!$A$86:$N$112,10,0),"") -> 389 | L66: =IFERROR(VLOOKUP($G$6,'Raw data'!$A$114:$N$140,10,0),"") -> 131 | M66: =IF(C66="-","-",IF(D66="-","-",'Raw data'!N150)) -> 27.17035979 | Q66: ='Raw data'!H150 -> 39.91033559
B67: 5050 5W 9V | C67: =IFERROR(VLOOKUP($G$6,'Raw data'!$A$2:$N$28,11,0),"") -> BXEP-27E-435-09A-00-00-0 | D67: =IF(C67="-","-",IF(Q67>I67,"-",'Raw data'!H151)) -> 82.62509548 | E67: =IF(D67="-","-",'Raw data'!P151+'Raw data'!S151) -> 8.066226232 | F67: 0.6664727126 | G67: 107 | H67: 160.546708 | I67: =IFERROR(VLOOKUP($G$6,'Raw data'!$A$30:$N$56,11,0),"") -> 800 | J67: =IFERROR(VLOOKUP($G$6,'Raw data'!$A$58:$N$84,11,0),"") -> 500 | K67: =IFERROR(VLOOKUP($G$6,'Raw data'!$A$86:$N$112,11,0),"") -> 579 | L67: =IFERROR(VLOOKUP($G$6,'Raw data'!$A$114:$N$140,11,0),"") -> 125 | M67: =IF(C67="-","-",IF(D67="-","-",'Raw data'!N151)) -> 26.26410374 | Q67: ='Raw data'!H151 -> 82.62509548
B68: 5050 5W 36V | C68: =IFERROR(VLOOKUP($G$6,'Raw data'!$A$2:$N$28,12,0),"") -> BXEP-27E-1C5-36A-00-00-0 | D68: =IF(C68="-","-",IF(Q68>I68,"-",'Raw data'!H152)) -> 20.65581615 | E68: =IF(D68="-","-",'Raw data'!P152+'Raw data'!S152) -> 32.26487716 | F68: 0.6664573706 | G68: 107 | H68: 160.5504038 | I68: =IFERROR(VLOOKUP($G$6,'Raw data'!$A$30:$N$56,12,0),"") -> 200 | J68: =IFERROR(VLOOKUP($G$6,'Raw data'!$A$58:$N$84,12,0),"") -> 125 | K68: =IFERROR(VLOOKUP($G$6,'Raw data'!$A$86:$N$112,12,0),"") -> 579 | L68: =IFERROR(VLOOKUP($G$6,'Raw data'!$A$114:$N$140,12,0),"") -> 125 | M68: =IF(C68="-","-",IF(D68="-","-",'Raw data'!N152)) -> 26.26407445 | Q68: ='Raw data'!H152 -> 20.65581615
B69: 5050 5W 9V Gen2 | C69: =IFERROR(VLOOKUP($G$6,'Raw data'!$A$2:$N$28,13,0),"") -> BXEP-27E-435-09B-00-00-0 | D69: =IF(C69="-","-",IF(Q69>I69,"-",'Raw data'!H153)) -> 81.19871515 | E69: =IF(D69="-","-",'Raw data'!P153+'Raw data'!S153) -> 7.96501777 | F69: 0.6467492091 | G69: 107 | H69: 165.4427999 | I69: =IFERROR(VLOOKUP($G$6,'Raw data'!$A$30:$N$56,13,0),"") -> 960 | J69: =IFERROR(VLOOKUP($G$6,'Raw data'!$A$58:$N$84,13,0),"") -> 500 | K69: =IFERROR(VLOOKUP($G$6,'Raw data'!$A$86:$N$112,13,0),"") -> 615 | L69: =IFERROR(VLOOKUP($G$6,'Raw data'!$A$114:$N$140,13,0),"") -> 139 | M69: =IF(C69="-","-",IF(D69="-","-",'Raw data'!N153)) -> 26.22705688 | Q69: ='Raw data'!H153 -> 81.19871515
B70: 5050 5W 36V Gen2 | C70: =IFERROR(VLOOKUP($G$6,'Raw data'!$A$2:$N$28,14,0),"") -> BXEP-27E-1C5-36B-00-00-0 | D70: =IF(C70="-","-",IF(Q70>I70,"-",'Raw data'!H154)) -> 20.29961763 | E70: =IF(D70="-","-",'Raw data'!P154+'Raw data'!S154) -> 31.77090646 | F70: 0.6449372527 | G70: 107 | H70: 165.9076128 | I70: =IFERROR(VLOOKUP($G$6,'Raw data'!$A$30:$N$56,14,0),"") -> 240 | J70: =IFERROR(VLOOKUP($G$6,'Raw data'!$A$58:$N$84,14,0),"") -> 125 | K70: =IFERROR(VLOOKUP($G$6,'Raw data'!$A$86:$N$112,14,0),"") -> 615 | L70: =IFERROR(VLOOKUP($G$6,'Raw data'!$A$114:$N$140,14,0),"") -> 139 | M70: =IF(C70="-","-",IF(D70="-","-",'Raw data'!N154)) -> 26.22362247 | Q70: ='Raw data'!H154 -> 20.29961763

Sheet Raw data (hidden)
A1: Color Temperature and CRI: | B1: 2835 0.2W 3V | C1: 2835 0.5W 3V Gen3 | D1: 2835 0.5W 3V | E1: 2835 1W 9V Gen2 | F1: 2835 1W 12V | G1: 3030 1W 6V | H1: 5050 1W 24V | I1: 5050 3W 9V | J1: 5050 3W 18V | K1: 5050 5W 9V | L1: 5050 5W 36V | M1: 5050 5W 9V Gen2 | N1: 5050 5W 36V Gen2 | O1: 2835 1W 18V | P1: 2835 0.2W 3V L | Q1: 2835 1W 9V L | R1: 2835 1W 9V Gen3 | S1: 2835 0.5W 3V Gen1 | T1: 2835 0.5W 3V Gen2 | U1: 2835 0.6W 6V | V1: 2835 1W 9V CRI90 | W1: 2835 1W 9V CRI90 | X1: 2835 1W 9V CRI90 | Y1: 3030 1W 6V(S)
A2: 2200K,80 CRI | B2: - | C2: - | D2: - | E2: - | F2: - | G2: - | H2: - | I2: - | J2: - | K2: - | L2: - | M2: - | N2: - | O2: - | P2: - | Q2: - | R2: - | S2: - | T2: - | U2: - | V2: - | W2: - | X2: - | Y2: BXEM-22E-12H-6A-00-0-0
A3: 2700K, 70 CRI | B3: - | C3: - | D3: - | E3: - | F3: - | G3: BXEM-27C0000-0-000 | H3: BXEP-27C-181-24A-00-00-0 | I3: - | J3: - | K3: - | L3: - | M3: BXEP-27C-435-09B-00-00-0 | N3: BXEP-27C-1C5-36B-00-00-0 | O3: - | P3: - | Q3: - | R3: - | S3: - | T3: - | U3: - | V3: - | W3: - | X3: - | Y3: BXEM-27C-12H-6A-00-0-0
A4: 2700K, 80 CRI | B4: BXEN-27E-11L-3AA-00-0-0 | C4: BXEN-27E-11M-3CA-00-0-0 | D4: BXEN-27E-11M-39A-00-0-0 | E4: BXEN-27E-13H-9B-00-0-0 | F4: BXEN-27E-14H-12B-00-0-0 | G4: BXEM-27E0000-0-000 | H4: BXEP-27E-181-24A-00-00-0 | I4: BXEP-27E-233-09A-00-00-0 | J4: BXEP-27E-163-18A-00-00-0 | K4: BXEP-27E-435-09A-00-00-0 | L4: BXEP-27E-1C5-36A-00-00-0 | M4: BXEP-27E-435-09B-00-00-0 | N4: BXEP-27E-1C5-36B-00-00-0 | O4: BXEN-27E-11H-18A-00-0-0 | P4: BXEN-27E-11L-37A-00-0-0 | Q4: BXEN-27E-13H-98-00-0-0 | R4: BXEN-27E-13H-9C-00-0-0 | S4: BXEN-27E-11M-3A-00-0-0 | T4: BXEN-27E-11M-3AA-00-00-0 | U4: BXEN-27E-12M-6A-00-0-0 | V4: - | W4: - | X4: - | Y4: BXEM-27E12H-6A-00-0-0
A5: 2700K, 90 CRI | B5: - | C5: - | D5: - | E5: BXEN-27G-13H-9B-00-0-0 | F5: BXEN-27G-14H-12B-00-0-0 | G5: BXEM-27G0000-0-000 | H5: BXEP-27G-181-24A-00-00-0 | I5: - | J5: - | K5: - | L5: - | M5: BXEP-27G-435-09B-00-00-0 | N5: BXEP-27G-1C5-36B-00-00-0 | O5: BXEN-27G-11H-18A-00-0-0 | P5: - | Q5: - | R5: BXEN-27G-13H-9C-00-0-0 | S5: BXEN-27G-11M-3A-00-0-0 | T5: - | U5: - | V5: BXEN-27G-13H-99N-00-0-0 | W5: BXEN-27G-13H-9BN-00-0-0 | X5: BXEN-27G-13H-9CN-00-0-0 | Y5: BXEM-27G-12H-6A-00-0-0
A6: 2700K, 94 CRI | B6: - | C6: - | D6: - | E6: - | F6: - | G6: - | H6: BXEP-27H-181-24A-00-00-0 | I6: - | J6: - | K6: - | L6: - | M6: - | N6: - | O6: - | P6: - | Q6: - | R6: - | S6: - | T6: - | U6: - | V6: - | W6: - | X6: - | Y6: -
A7: 3000K, 70 CRI | B7: - | C7: - | D7: - | E7: - | F7: - | G7: BXEM-30C0000-0-000 | H7: BXEP-30C-181-24A-00-00-0 | I7: - | J7: - | K7: - | L7: - | M7: BXEP-30C-435-09B-00-00-0 | N7: BXEP-30C-1C5-36B-00-00-0 | O7: - | P7: - | Q7: - | R7: - | S7: - | T7: - | U7: - | V7: - | W7: - | X7: - | Y7: BXEM-30C-12H-6A-00-0-0
A8: 3000K, 80 CRI | B8: BXEN-30E-11L-3AA-00-0-0 | C8: BXEN-30E-11M-3CA-00-0-0 | D8: BXEN-30E-11M-39A-00-0-0 | E8: BXEN-30E-13H-9B-00-0-0 | F8: BXEN-30E-14H-12B-00-0-0 | G8: BXEM-30E0000-0-000 | H8: BXEP-30E-181-24A-00-00-0 | I8: BXEP-30E-233-09A-00-00-0 | J8: BXEP-30E-163-18A-00-00-0 | K8: BXEP-30E-435-09A-00-00-0 | L8: BXEP-30E-1C5-36A-00-00-0 | M8: BXEP-30E-435-09B-00-00-0 | N8: BXEP-30E-1C5-36B-00-00-0 | O8: BXEN-30E-11H-18A-00-0-0 | P8: BXEN-30E-11L-37A-00-0-0 | Q8: BXEN-30E-13H-98-00-0-0 | R8: BXEN-30E-13H-9C-00-0-0 | S8: BXEN-30E-11M-3A-00-0-0 | T8: BXEN-30E-11M-3AA-00-00-0 | U8: BXEN-30E-12M-6A-00-0-0 | V8: - | W8: - | X8: - | Y8: BXEM-30E-12H-6A-00-0-0
A9: 3000K, 90 CRI | B9: - | C9: - | D9: - | E9: BXEN-30G-13H-9B-00-0-0 | F9: BXEN-30G-14H-12B-00-0-0 | G9: BXEM-30G0000-0-000 | H9: BXEP-30G-181-24A-00-00-0 | I9: - | J9: - | K9: - | L9: - | M9: BXEP-30G-435-09B-00-00-0 | N9: BXEP-30G-1C5-36B-00-00-0 | O9: BXEN-30G-11H-18A-00-0-0 | P9: - | Q9: - | R9: BXEN-30G-13H-9C-00-0-0 | S9: BXEN-30G-11M-3A-00-0-0 | T9: - | U9: - | V9: BXEN-30G-13H-99N-00-0-0 | W9: BXEN-30G-13H-9BN-00-0-0 | X9: BXEN-30G-13H-9CN-00-0-0 | Y9: BXEM-30G-12H-6A-00-0-0
A10: 3500K, 70 CRI | B10: - | C10: - | D10: - | E10: - | F10: - | G10: BXEM-35C0000-0-000 | H10: BXEP-35C-181-24A-00-00-0 | I10: - | J10: - | K10: - | L10: - | M10: BXEP-35C-435-09B-00-00-0 | N10: BXEP-35C-1C5-36B-00-00-0 | O10: - | P10: - | Q10: - | R10: - | S10: - | T10: - | U10: - | V10: - | W10: - | X10: - | Y10: BXEM-35C-12H-6A-00-0-0
A11: 3500K, 80 CRI | B11: BXEN-35E-11L-3AA-00-0-0 | C11: BXEN-35E-11M-3CA-00-0-0 | D11: BXEN-35E-11M-39A-00-0-0 | E11: BXEN-35E-13H-9B-00-0-0 | F11: BXEN-35E-14H-12B-00-0-0 | G11: BXEM-35E0000-0-000 | H11: BXEP-35E-181-24A-00-00-0 | I11: BXEP-35E-233-09A-00-00-0 | J11: BXEP-35E-163-18A-00-00-0 | K11: BXEP-35E-435-09A-00-00-0 | L11: BXEP-35E-1C5-36A-00-00-0 | M11: BXEP-35E-435-09B-00-00-0 | N11: BXEP-35E-1C5-36B-00-00-0 | O11: BXEN-35E-11H-18A-00-0-0 | P11: BXEN-35E-11L-37A-00-0-0 | Q11: BXEN-35E-13H-98-00-0-0 | R11: BXEN-35E-13H-9C-00-0-0 | S11: BXEN-35E-11M-3A-00-0-0 | T11: BXEN-35E-11M-3AA-00-00-0 | U11: BXEN-35E-12M-6A-00-0-0 | V11: - | W11: - | X11: - | Y11: BXEM-35E-12H-6A-00-0-0
A12: 3500K, 90 CRI | B12: - | C12: - | E12: BXEN-35G-13H-9B-00-0-0 | F12: BXEN-35G-14H-12B-00-0-0 | G12: BXEM-35G0000-0-000 | H12: - | I12: - | J12: - | K12: - | L12: - | M12: - | N12: - | O12: BXEN-35G-11H-18A-00-0-0 | P12: - | Q12: - | R12: BXEN-35G-13H-9C-00-0-0 | S12: BXEN-35G-11M-3A-00-0-0 | T12: - | U12: - | V12: BXEN-35G-13H-99N-00-0-0 | W12: BXEN-35G-13H-9BN-00-0-0 | X12: BXEN-35G-13H-9CN-00-0-0 | Y12: BXEM-35G-12H-6A-00-0-0
A13: 4000K, 70 CRI | B13: - | C13: - | D13: - | E13: - | F13: - | G13: BXEM-40C0000-0-000 | H13: BXEP-40C-181-24A-00-00-0 | I13: - | J13: - | K13: - | L13: - | M13: BXEP-40C-435-09B-00-00-0 | N13: BXEP-40C-1C5-36B-00-00-0 | O13: - | P13: - | Q13: - | R13: - | S13: - | T13: - | U13: - | V13: - | W13: - | X13: - | Y13: BXEM-40C-12H-6A-00-0-0
A14: 4000K, 80 CRI | B14: BXEN-40E-11L-3AA-00-0-0 | C14: BXEN-40E-11M-3CA-00-0-0 | D14: BXEN-40E-11M-39A-00-0-0 | E14: BXEN-40E-13H-9B-00-0-0 | F14: BXEN-40E-14H-12B-00-0-0 | G14: BXEM-40E0000-0-000 | H14: BXEP-40E-181-24A-00-00-0 | I14: BXEP-40E-233-09A-00-00-0 | J14: BXEP-40E-163-18A-00-00-0 | K14: BXEP-40E-435-09A-00-00-0 | L14: BXEP-40E-1C5-36A-00-00-0 | M14: BXEP-40E-435-09B-00-00-0 | N14: BXEP-40E-1C5-36B-00-00-0 | O14: BXEN-40E-11H-18A-00-0-0 | P14: BXEN-40E-11L-37A-00-0-0 | Q14: BXEN-40E-13H-98-00-0-0 | R14: BXEN-40E-13H-9C-00-0-0 | S14: BXEN-40E-11M-3A-00-0-0 | T14: BXEN-40E-11M-3AA-00-00-0 | U14: BXEN-40E-12M-6A-00-0-0 | V14: - | W14: - | X14: - | Y14: BXEM-40E-12H-6A-00-0-0
A15: 4000K, 90 CRI | B15: - | C15: - | D15: - | E15: BXEN-40G-13H-9B-00-0-0 | F15: BXEN-40G-14H-12B-00-0-0 | G15: BXEM-40G0000-0-000 | H15: BXEP-40G-181-24A-00-00-0 | I15: - | J15: - | K15: - | L15: - | M15: BXEP-40G-435-09B-00-00-0 | N15: BXEP-40G-1C5-36B-00-00-0 | O15: BXEN-40G-11H-18A-00-0-0 | P15: - | Q15: - | R15: BXEN-40G-13H-9C-00-0-0 | S15: BXEN-40G-11M-3A-00-0-0 | T15: - | U15: - | V15: BXEN-40G-13H-99N-00-0-0 | W15: BXEN-40G-13H-9BN-00-0-0 | X15: BXEN-40G-13H-9CN-00-0-0 | Y15: BXEM-40G-12H-6A-00-0-0
A16: 4000K, 94 CRI | B16: - | C16: - | D16: - | E16: - | F16: - | G16: - | H16: BXEP-40H-181-24A-00-00-0 | I16: - | J16: - | K16: - | L16: - | M16: - | N16: - | O16: - | P16: - | Q16: - | R16: - | S16: - | T16: - | U16: - | V16: - | W16: - | X16: - | Y16: -
A17: 4500K, 70 CRI | B17: - | C17: - | D17: - | E17: - | F17: - | G17: - | H17: BXEP-45C-181-24A-00-00-0 | I17: - | J17: - | K17: - | L17: - | M17: BXEP-45C-435-09B-00-00-0 | N17: BXEP-45C-1C5-36B-00-00-0 | O17: - | P17: - | Q17: - | R17: - | S17: - | T17: - | U17: - | V17: - | W17: - | X17: - | Y17: BXEM-45C-12H-6A-00-0-0
A18: 4500K, 80 CRI | B18: - | C18: - | D18: - | E18: - | F18: - | G18: - | H18: BXEP-45E-181-24A-00-00-0 | I18: - | J18: - | K18: - | L18: - | M18: BXEP-45E-435-09B-00-00-0 | N18: BXEP-45E-1C5-36B-00-00-0 | O18: - | P18: - | Q18: - | R18: - | S18: - | T18: - | U18: - | V18: - | W18: - | X18: - | Y18: BXEM-45E-12H-6A-00-0-0
A19: 4500K, 90 CRI | B19: - | C19: - | D19: - | E19: - | F19: - | G19: - | H19: - | I19: - | J19: - | K19: - | L19: - | M19: - | O19: - | P19: - | Q19: - | R19: - | S19: - | T19: - | U19: - | V19: - | W19: - | X19: - | Y19: BXEM-45G-12H-6A-00-0-0
A20: 5000K, 70 CRI | B20: - | C20: - | D20: - | E20: - | F20: - | G20: BXEM-50C0000-0-000 | H20: BXEP-50C-181-24A-00-00-0 | I20: - | J20: - | K20: - | L20: - | M20: BXEP-50C-435-09B-00-00-0 | N20: BXEP-50C-1C5-36B-00-00-0 | O20: - | P20: - | Q20: - | R20: - | S20: - | T20: - | U20: - | V20: - | W20: - | X20: - | Y20: BXEM-50C-12H-6A-00-0-0
A21: 5000K, 80 CRI | B21: BXEN-50E-11L-3AA-00-0-0 | C21: BXEN-50E-11M-3CA-00-0-0 | D21: BXEN-50E-11M-39A-00-0-0 | E21: BXEN-50E-13H-9B-00-0-0 | F21: BXEN-50E-14H-12B-00-0-0 | G21: BXEM-50E0000-0-000 | H21: BXEP-50E-181-24A-00-00-0 | I21: BXEP-50E-233-09A-00-00-0 | J21: BXEP-50E-163-18A-00-00-0 | K21: BXEP-50E-435-09A-00-00-0 | L21: BXEP-50E-1C5-36A-00-00-0 | M21: BXEP-50E-435-09B-00-00-0 | N21: BXEP-50E-1C5-36B-00-00-0 | O21: BXEN-50E-11H-18A-00-0-0 | P21: BXEN-50E-11L-37A-00-0-0 | Q21: BXEN-50E-13H-98-00-0-0 | R21: BXEN-50E-13H-9C-00-0-0 | S21: BXEN-50E-11M-3A-00-0-0 | T21: BXEN-50E-11M-3AA-00-00-0 | U21: BXEN-50E-12M-6A-00-0-0 | V21: - | W21: - | X21: - | Y21: BXEM-50E-12H-6A-00-0-0
A22: 5000K, 90 CRI | B22: - | C22: - | D22: - | E22: BXEN-50G13H-9B-00-0-0 | F22: BXEN-50G-14H-12B-00-0-0 | G22: BXEM-50G0000-0-000 | H22: - | I22: - | J22: - | K22: - | L22: - | M22: - | N22: - | O22: BXEN-50G-11H-18A-00-0-0 | P22: - | Q22: - | R22: BXEN-50G-13H-9C-00-0-0 | S22: BXEN-50G-11M-3A-00-0-0 | T22: - | U22: - | V22: BXEN-50G-13H-99N-00-0-0 | W22: BXEN-50G-13H-9BN-00-0-0 | X22: BXEN-50G-13H-9CN-00-0-0 | Y22: BXEM-50G-12H-6A-00-0-0
A23: 5700K, 70 CRI | B23: - | C23: - | D23: - | E23: - | F23: - | G23: BXEM-57C0000-0-000 | H23: BXEP-57C-181-24A-00-00-0 | I23: - | J23: - | K23: - | L23: - | M23: BXEP-57C-435-09B-00-00-0 | N23: BXEP-57C-1C5-36B-00-00-0 | O23: - | P23: - | Q23: - | R23: - | S23: - | T23: - | U23: - | V23: - | W23: - | X23: - | Y23: BXEM-57C-12H-6A-00-0-0
A24: 5700K, 80 CRI | B24: BXEN-57E-11L-3AA-00-0-0 | C24: BXEN-57E-11M-3CA-00-0-0 | D24: BXEN-57E-11M-39A-00-0-0 | E24: BXEN-57E-13H-9B-00-0-0 | F24: BXEN-57E-14H-12B-00-0-0 | G24: BXEM-57E0000-0-000 | H24: BXEP-57E-181-24A-00-00-0 | I24: BXEP-57E-233-09A-00-00-0 | J24: BXEP-57E-163-18A-00-00-0 | K24: BXEP-57E-435-09A-00-00-0 | L24: BXEP-57E-1C5-36A-00-00-0 | M24: BXEP-57E-435-09B-00-00-0 | N24: BXEP-57E-1C5-36B-00-00-0 | O24: BXEN-57E-11H-18A-00-0-0 | P24: BXEN-57E-11L-37A-00-0-0 | Q24: BXEN-57E-13H-98-00-0-0 | R24: BXEN-57E-13H-9C-00-0-0 | S24: BXEN-57E-11M-3A-00-0-0 | T24: BXEN-57E-11M-3AA-00-00-0 | U24: BXEN-57E-12M-6A-00-0-0 | V24: - | W24: - | X24: - | Y24: BXEM-57E-12H-6A-00-0-0
A25: 5700K, 90 CRI | B25: - | C25: - | D25: - | E25: BXEN-57G-13H-9B-00-0-0 | F25: BXEN-57G-14H-12B-00-0-0 | G25: BXEM-57G0000-0-000 | H25: - | I25: - | J25: - | K25: - | L25: - | M25: - | N25: - | O25: BXEN-57G-11H-18A-00-0-0 | P25: - | Q25: - | R25: BXEN-57G-13H-9C-00-0-0 | S25: BXEN-57G-11M-3A-00-0-0 | T25: - | U25: - | V25: BXEN-57G-13H-99N-00-0-0 | W25: BXEN-57G-13H-9BN-00-0-0 | X25: BXEN-57G-13H-9CN-00-0-0 | Y25: BXEM-57G-12H-6A-00-0-0
A26: 6500K, 70 CRI | B26: - | C26: - | D26: - | E26: - | F26: - | G26: BXEM-65C0000-0-000 | H26: BXEP-65C-181-24A-00-00-0 | I26: - | J26: - | K26: - | L26: - | M26: BXEP-65C-435-09B-00-00-0 | N26: BXEP-65C-1C5-36B-00-00-0 | O26: - | P26: - | Q26: - | R26: - | S26: - | T26: - | U26: - | V26: - | W26: - | X26: - | Y26: BXEM-65C-12H-6A-00-0-0
A27: 6500K, 80 CRI | B27: BXEN-65E-11L-3AA-00-0-0 | C27: BXEN-65E-11M-3CA-00-0-0 | D27: BXEN-65E-11M-39A-00-0-0 | E27: BXEN-65E-13H-9B-00-0-0 | F27: BXEN-65E-14H-12B-00-0-0 | G27: BXEM-65E0000-0-000 | H27: BXEP-65E-181-24A-00-00-0 | I27: BXEP-65E-233-09A-00-00-0 | J27: BXEP-65E-163-18A-00-00-0 | K27: BXEP-65E-435-09A-00-00-0 | L27: BXEP-65E-1C5-36A-00-00-0 | M27: BXEP-65E-435-09B-00-00-0 | N27: BXEP-65E-1C5-36B-00-00-0 | O27: BXEN-65E-11H-18A-00-0-0 | P27: BXEN-65E-11L-37A-00-0-0 | Q27: BXEN-65E-13H-98-00-0-0 | R27: BXEN-65E-13H-9C-00-0-0 | S27: BXEN-65E-11M-3A-00-0-0 | T27: BXEN-65E-11M-3AA-00-00-0 | U27: BXEN-65E-12M-6A-00-0-0 | V27: - | W27: - | X27: - | Y27: BXEM-65E-12H-6A-00-0-0
A28: 6500K, 90 CRI | B28: - | C28: - | D28: - | E28: - | F28: - | G28: BXEM-65G0000-0-000 | H28: - | I28: - | J28: - | K28: - | L28: - | M28: - | N28: - | O28: - | P28: - | Q28: - | R28: - | S28: - | T28: - | U28: - | V28: - | W28: - | X28: - | Y28: BXEM-65G-12H-6A-00-0-0
A29: Max. Current
A30: 2200K,80 CRI | B30: - | C30: - | D30: - | E30: - | F30: - | G30: - | H30: - | I30: - | J30: - | K30: - | L30: - | M30: - | N30: - | O30: - | P30: - | Q30: - | R30: - | S30: - | T30: - | U30: - | V30: - | W30: - | X30: - | Y30: 240
A31: 2700K, 70 CRI | B31: - | C31: - | D31: - | E31: - | F31: - | G31: 240 | H31: 240 | I31: - | J31: - | K31: - | L31: - | M31: 960 | N31: 240 | O31: - | P31: - | Q31: - | R31: - | S31: - | T31: - | U31: - | V31: - | W31: - | X31: - | Y31: 240
A32: 2700K, 80 CRI | B32: 100 | C32: 150 | D32: 150 | E32: 120 | F32: 90 | G32: 240 | H32: 240 | I32: 480 | J32: 240 | K32: 800 | L32: 200 | M32: 960 | N32: 240 | O32: 60 | P32: 100 | Q32: 120 | R32: 120 | S32: 150 | T32: 150 | U32: 120 | V32: - | W32: - | X32: - | Y32: 240
A33: 2700K, 90 CRI | B33: - | C33: - | D33: - | E33: 120 | F33: 90 | G33: 240 | H33: 240 | I33: - | J33: - | K33: - | L33: - | M33: 960 | N33: 240 | O33: 60 | P33: - | Q33: - | R33: 120 | S33: 150 | T33: - | U33: - | V33: 120 | W33: 120 | X33: 120 | Y33: 240
A34: 2700K, 94 CRI | B34: - | C34: - | D34: - | E34: - | F34: - | G34: - | H34: 240 | I34: - | J34: - | K34: - | L34: - | M34: - | N34: - | O34: - | P34: - | Q34: - | R34: - | S34: - | T34: - | U34: - | V34: - | W34: - | X34: - | Y34: -
A35: 3000K, 70 CRI | B35: - | C35: - | D35: - | E35: - | F35: - | G35: 240 | H35: 240 | I35: - | J35: - | K35: - | L35: - | M35: 960 | N35: 240 | O35: - | P35: - | Q35: - | R35: - | S35: - | T35: - | U35: - | V35: - | W35: - | X35: - | Y35: 240
A36: 3000K, 80 CRI | B36: 100 | C36: 150 | D36: 150 | E36: 120 | F36: 90 | G36: 240 | H36: 240 | I36: 480 | J36: 240 | K36: 800 | L36: 200 | M36: 960 | N36: 240 | O36: 60 | P36: 100 | Q36: 120 | R36: 120 | S36: 150 | T36: 150 | U36: 120 | V36: - | W36: - | X36: - | Y36: 240
A37: 3000K, 90 CRI | B37: - | C37: - | D37: - | E37: 120 | F37: 90 | G37: 240 | H37: 240 | I37: - | J37: - | K37: - | L37: - | M37: 960 | N37: 240 | O37: 60 | P37: - | Q37: - | R37: 120 | S37: 150 | T37: - | U37: - | V37: 120 | W37: 120 | X37: 120 | Y37: 240
A38: 3500K, 70 CRI | B38: - | C38: - | D38: - | E38: - | F38: - | G38: 240 | H38: 240 | I38: - | J38: - | K38: - | L38: - | M38: 960 | N38: 240 | O38: - | P38: - | Q38: - | R38: - | S38: - | T38: - | U38: - | V38: - | W38: - | X38: - | Y38: 240
A39: 3500K, 80 CRI | B39: 100 | C39: 150 | D39: 150 | E39: 120 | F39: 90 | G39: 240 | H39: 240 | I39: 480 | J39: 240 | K39: 800 | L39: 200 | M39: 960 | N39: 240 | O39: 60 | P39: 100 | Q39: 120 | R39: 120 | S39: 150 | T39: 150 | U39: 120 | V39: - | W39: - | X39: - | Y39: 240
A40: 3500K, 90 CRI | B40: - | C40: - | D40: - | E40: 120 | F40: 90 | G40: 240 | H40: - | I40: - | J40: - | K40: - | L40: - | M40: - | N40: - | O40: 60 | P40: - | Q40: - | R40: 120 | S40: 150 | T40: - | U40: - | V40: 120 | W40: 120 | X40: 120 | Y40: 240
A41: 4000K, 70 CRI | B41: - | C41: - | D41: - | E41: - | F41: - | G41: 240 | H41: 240 | I41: - | J41: - | K41: - | L41: - | M41: 960 | N41: 240 | O41: - | P41: - | Q41: - | R41: - | S41: - | T41: - | U41: - | V41: - | W41: - | X41: - | Y41: 240
A42: 4000K, 80 CRI | B42: 100 | C42: 150 | D42: 150 | E42: 120 | F42: 90 | G42: 240 | H42: 240 | I42: 480 | J42: 240 | K42: 800 | L42: 200 | M42: 960 | N42: 240 | O42: 60 | P42: 100 | Q42: 120 | R42: 120 | S42: 150 | T42: 150 | U42: 120 | V42: - | W42: - | X42: - | Y42: 240
A43: 4000K, 90 CRI | B43: - | C43: - | D43: - | E43: 120 | F43: 90 | G43: 240 | H43: 240 | I43: - | J43: - | K43: - | L43: - | M43: 960 | N43: 240 | O43: 60 | P43: - | Q43: - | R43: 120 | S43: 150 | T43: - | U43: - | V43: 120 | W43: 120 | X43: 120 | Y43: 240
A44: 4000K, 94 CRI | B44: - | C44: - | D44: - | E44: - | F44: - | G44: - | H44: 240 | I44: - | J44: - | K44: - | L44: - | M44: - | N44: - | O44: - | P44: - | Q44: - | R44: - | S44: - | T44: - | U44: - | V44: - | W44: - | X44: - | Y44: -
A45: 4500K, 70 CRI | B45: - | C45: - | D45: - | E45: - | F45: - | G45: - | H45: 240 | I45: - | J45: - | K45: - | L45: - | M45: 960 | N45: 240 | O45: - | P45: - | Q45: - | R45: - | S45: - | T45: - | U45: - | V45: - | W45: - | X45: - | Y45: 240
A46: 4500K, 80 CRI | B46: - | C46: - | D46: - | E46: - | F46: - | G46: - | H46: 240 | I46: - | J46: - | K46: - | L46: - | M46: 960 | N46: 240 | O46: - | P46: - | Q46: - | R46: - | S46: - | T46: - | U46: - | V46: - | W46: - | X46: - | Y46: 240
A47: 4500K, 90 CRI | B47: - | C47: - | D47: - | E47: - | F47: - | G47: - | H47: - | I47: - | J47: - | K47: - | L47: - | M47: - | N47: - | O47: - | P47: - | Q47: - | R47: - | S47: - | T47: - | U47: - | V47: - | W47: - | X47: - | Y47: 240
A48: 5000K, 70 CRI | B48: - | C48: - | D48: - | E48: - | F48: - | G48: 240 | H48: 240 | I48: - | J48: - | K48: - | L48: - | M48: 960 | N48: 240 | O48: - | P48: - | Q48: - | R48: - | S48: - | T48: - | U48: - | V48: - | W48: - | X48: - | Y48: 240
A49: 5000K, 80 CRI | B49: 100 | C49: 150 | D49: 150 | E49: 120 | F49: 90 | G49: 240 | H49: 240 | I49: 480 | J49: 240 | K49: 800 | L49: 200 | M49: 960 | N49: 240 | O49: 60 | P49: 100 | Q49: 120 | R49: 120 | S49: 150 | T49: 150 | U49: 120 | V49: - | W49: - | X49: - | Y49: 240
A50: 5000K, 90 CRI | B50: - | C50: - | D50: - | E50: 120 | F50: 90 | G50: 240 | H50: - | I50: - | J50: - | K50: - | L50: - | M50: - | N50: - | O50: 60 | P50: - | Q50: - | R50: 120 | S50: 150 | T50: - | U50: - | V50: 120 | W50: 120 | X50: 120 | Y50: 240
A51: 5700K, 70 CRI | B51: - | C51: - | D51: - | E51: - | F51: - | G51: 240 | H51: 240 | I51: - | J51: - | K51: - | L51: - | M51: 960 | N51: 240 | O51: - | P51: - | Q51: - | R51: - | S51: - | T51: - | U51: - | V51: - | W51: - | X51: - | Y51: 240
A52: 5700K, 80 CRI | B52: 100 | C52: 150 | D52: 150 | E52: 120 | F52: 90 | G52: 240 | H52: 240 | I52: 480 | J52: 240 | K52: 800 | L52: 200 | M52: 960 | N52: 240 | O52: 60 | P52: 100 | Q52: 120 | R52: 120 | S52: 150 | T52: 150 | U52: 120 | V52: - | W52: - | X52: - | Y52: 240
A53: 5700K, 90 CRI | B53: - | C53: - | D53: - | E53: 120 | F53: 90 | G53: 240 | H53: - | I53: - | J53: - | K53: - | L53: - | M53: - | N53: - | O53: 60 | P53: - | Q53: - | R53: 120 | S53: 150 | T53: - | U53: - | V53: 120 | W53: 120 | X53: 120 | Y53: 240
A54: 6500K, 70 CRI | B54: - | C54: - | D54: - | E54: - | F54: - | G54: 240 | H54: 240 | I54: - | J54: - | K54: - | L54: - | M54: 960 | N54: 240 | O54: - | P54: - | Q54: - | R54: - | S54: - | T54: - | U54: - | V54: - | W54: - | X54: - | Y54: 240
A55: 6500K, 80 CRI | B55: 100 | C55: 150 | D55: 150 | E55: 120 | F55: 90 | G55: 240 | H55: 240 | I55: 480 | J55: 240 | K55: 800 | L55: 200 | M55: 960 | N55: 240 | O55: 60 | P55: 100 | Q55: 120 | R55: 120 | S55: 150 | T55: 150 | U55: 120 | V55: - | W55: - | X55: - | Y55: 240
A56: 6500K, 90 CRI | B56: - | C56: - | D56: - | E56: - | F56: - | G56: 240 | H56: - | I56: - | J56: - | K56: - | L56: - | M56: - | N56: - | O56: - | P56: - | Q56: - | R56: - | S56: - | T56: - | U56: - | V56: - | W56: - | X56: - | Y56: 240
A57: Typical Current
A58: 2200K,80 CRI | B58: - | C58: - | D58: - | E58: - | F58: - | G58: - | H58: - | I58: - | J58: - | K58: - | L58: - | M58: - | N58: - | O58: - | P58: - | Q58: - | R58: - | S58: - | T58: - | U58: - | V58: - | W58: - | X58: - | Y58: 150
A59: 2700K, 70 CRI | B59: - | C59: - | D59: - | E59: - | F59: - | G59: 150 | H59: 45 | I59: - | J59: - | K59: - | L59: - | M59: 500 | N59: 125 | O59: - | P59: - | Q59: - | R59: - | S59: - | T59: - | U59: - | V59: - | W59: - | X59: - | Y59: 150
A60: 2700K, 80 CRI | B60: 60 | C60: 150 | D60: 150 | E60: 100 | F60: 75 | G60: 150 | H60: 45 | I60: 320 | J60: 160 | K60: 500 | L60: 125 | M60: 500 | N60: 125 | O60: 50 | P60: 60 | Q60: 100 | R60: 100 | S60: 150 | T60: 150 | U60: 100 | V60: - | W60: - | X60: - | Y60: 150
A61: 2700K, 90 CRI | B61: - | C61: - | D61: - | E61: 100 | F61: 75 | G61: 150 | H61: 45 | I61: - | J61: - | K61: - | L61: - | M61: 500 | N61: 125 | O61: 50 | P61: - | Q61: - | R61: 100 | S61: 150 | T61: - | U61: - | V61: 100 | W61: 100 | X61: 100 | Y61: 150
A62: 2700K, 94 CRI | B62: - | C62: - | D62: - | E62: - | F62: - | G62: - | H62: 45 | I62: - | J62: - | K62: - | L62: - | M62: - | N62: - | O62: - | P62: - | Q62: - | R62: - | S62: - | T62: - | U62: - | V62: - | W62: - | X62: - | Y62: -
A63: 3000K, 70 CRI | B63: - | C63: - | D63: - | E63: - | F63: - | G63: 150 | H63: 45 | I63: - | J63: - | K63: - | L63: - | M63: 500 | N63: 125 | O63: - | P63: - | Q63: - | R63: - | S63: - | T63: - | U63: - | V63: - | W63: - | X63: - | Y63: 150
A64: 3000K, 80 CRI | B64: 60 | C64: 150 | D64: 150 | E64: 100 | F64: 75 | G64: 150 | H64: 45 | I64: 320 | J64: 160 | K64: 500 | L64: 125 | M64: 500 | N64: 125 | O64: 50 | P64: 60 | Q64: 100 | R64: 100 | S64: 150 | T64: 150 | U64: 100 | V64: - | W64: - | X64: - | Y64: 150
A65: 3000K, 90 CRI | B65: - | C65: - | D65: - | E65: 100 | F65: 75 | G65: 150 | H65: 45 | I65: - | J65: - | K65: - | L65: - | M65: 500 | N65: 125 | O65: 50 | P65: - | Q65: - | R65: 100 | S65: 150 | T65: - | U65: - | V65: 100 | W65: 100 | X65: 100 | Y65: 150
A66: 3500K, 70 CRI | B66: - | C66: - | D66: - | E66: - | F66: - | G66: 150 | H66: 45 | I66: - | J66: - | K66: - | L66: - | M66: 500 | N66: 125 | O66: - | P66: - | Q66: - | R66: - | S66: - | T66: - | U66: - | V66: - | W66: - | X66: - | Y66: 150
A67: 3500K, 80 CRI | B67: 60 | C67: 150 | D67: 150 | E67: 100 | F67: 75 | G67: 150 | H67: 45 | I67: 320 | J67: 160 | K67: 500 | L67: 125 | M67: 500 | N67: 125 | O67: 50 | P67: 60 | Q67: 100 | R67: 100 | S67: 150 | T67: 150 | U67: 100 | V67: - | W67: - | X67: - | Y67: 150
A68: 3500K, 90 CRI | B68: - | C68: - | D68: - | E68: 100 | F68: 75 | G68: 150 | H68: - | I68: - | J68: - | K68: - | L68: - | M68: - | N68: - | O68: 50 | P68: - | Q68: - | R68: 100 | S68: 150 | T68: - | U68: - | V68: 100 | W68: 100 | X68: 100 | Y68: 150
A69: 4000K, 70 CRI | B69: - | C69: - | D69: - | E69: - | F69: - | G69: 150 | H69: 45 | I69: - | J69: - | K69: - | L69: - | M69: 500 | N69: 125 | O69: - | P69: - | Q69: - | R69: - | S69: - | T69: - | U69: - | V69: - | W69: - | X69: - | Y69: 150
A70: 4000K, 80 CRI | B70: 60 | C70: 150 | D70: 150 | E70: 100 | F70: 75 | G70: 150 | H70: 45 | I70: 320 | J70: 160 | K70: 500 | L70: 125 | M70: 500 | N70: 125 | O70: 50 | P70: 60 | Q70: 100 | R70: 100 | S70: 150 | T70: 150 | U70: 100 | V70: - | W70: - | X70: - | Y70: 150
A71: 4000K, 90 CRI | B71: - | C71: - | D71: - | E71: 100 | F71: 75 | G71: 150 | H71: 45 | I71: - | J71: - | K71: - | L71: - | M71: 500 | N71: 125 | O71: 50 | P71: - | Q71: - | R71: 100 | S71: 150 | T71: - | U71: - | V71: 100 | W71: 100 | X71: 100 | Y71: 150
A72: 4000K, 94 CRI | B72: - | C72: - | D72: - | E72: - | F72: - | G72: - | H72: 45 | I72: - | J72: - | K72: - | L72: - | M72: - | N72: - | O72: - | P72: - | Q72: - | R72: - | S72: - | T72: - | U72: - | V72: - | W72: - | X72: - | Y72: -
A73: 4500K, 70 CRI | B73: - | C73: - | D73: - | E73: - | F73: - | G73: - | H73: 45 | I73: - | J73: - | K73: - | L73: - | M73: 500 | N73: 125 | O73: - | P73: - | Q73: - | R73: - | S73: - | T73: - | U73: - | V73: - | W73: - | X73: - | Y73: 150
A74: 4500K, 80 CRI | B74: - | C74: - | D74: - | E74: - | F74: - | G74: - | H74: 45 | I74: - | J74: - | K74: - | L74: - | M74: 500 | N74: 125 | O74: - | P74: - | Q74: - | R74: - | S74: - | T74: - | U74: - | V74: - | W74: - | X74: - | Y74: 150
A75: 4500K, 90 CRI | B75: - | C75: - | D75: - | E75: - | F75: - | G75: - | H75: - | I75: - | J75: - | K75: - | L75: - | M75: - | N75: - | O75: - | P75: - | Q75: - | R75: - | S75: - | T75: - | U75: - | V75: - | W75: - | X75: - | Y75: 150
A76: 5000K, 70 CRI | B76: - | C76: - | D76: - | E76: - | F76: - | G76: 150 | H76: 45 | I76: - | J76: - | K76: - | L76: - | M76: 500 | N76: 125 | O76: - | P76: - | Q76: - | R76: - | S76: - | T76: - | U76: - | V76: - | W76: - | X76: - | Y76: 150
A77: 5000K, 80 CRI | B77: 60 | C77: 150 | D77: 150 | E77: 100 | F77: 75 | G77: 150 | H77: 45 | I77: 320 | J77: 160 | K77: 500 | L77: 125 | M77: 500 | N77: 125 | O77: 50 | P77: 60 | Q77: 100 | R77: 100 | S77: 150 | T77: 150 | U77: 100 | V77: - | W77: - | X77: - | Y77: 150
A78: 5000K, 90 CRI | B78: - | C78: - | D78: - | E78: 100 | F78: 75 | G78: 150 | H78: - | I78: - | J78: - | K78: - | L78: - | M78: - | N78: - | O78: 50 | P78: - | Q78: - | R78: 100 | S78: 150 | T78: - | U78: - | V78: 100 | W78: 100 | X78: 100 | Y78: 150
A79: 5700K, 70 CRI | B79: - | C79: - | D79: - | E79: - | F79: - | G79: 150 | H79: 45 | I79: - | J79: - | K79: - | L79: - | M79: 500 | N79: 125 | O79: - | P79: - | Q79: - | R79: - | S79: - | T79: - | U79: - | V79: - | W79: - | X79: - | Y79: 150
A80: 5700K, 80 CRI | B80: 60 | C80: 150 | D80: 150 | E80: 100 | F80: 75 | G80: 150 | H80: 45 | I80: 320 | J80: 160 | K80: 500 | L80: 125 | M80: 500 | N80: 125 | O80: 50 | P80: 60 | Q80: 100 | R80: 100 | S80: 150 | T80: 150 | U80: 100 | V80: - | W80: - | X80: - | Y80: 150
A81: 5700K, 90 CRI | B81: - | C81: - | D81: - | E81: 100 | F81: 75 | G81: 150 | H81: - | I81: - | J81: - | K81: - | L81: - | M81: - | N81: - | O81: 50 | P81: - | Q81: - | R81: 100 | S81: 150 | T81: - | U81: - | V81: 100 | W81: 100 | X81: 100 | Y81: 150
A82: 6500K, 70 CRI | B82: - | C82: - | D82: - | E82: - | F82: - | G82: 150 | H82: 45 | I82: - | J82: - | K82: - | L82: - | M82: 500 | N82: 125 | O82: - | P82: - | Q82: - | R82: - | S82: - | T82: - | U82: - | V82: - | W82: - | X82: - | Y82: 150
A83: 6500K, 80 CRI | B83: 60 | C83: 150 | D83: 150 | E83: 100 | F83: 75 | G83: 150 | H83: 45 | I83: 320 | J83: 160 | K83: 500 | L83: 125 | M83: 500 | N83: 125 | O83: 50 | P83: 60 | Q83: 100 | R83: 100 | S83: 150 | T83: 150 | U83: 100 | V83: - | W83: - | X83: - | Y83: 150
A84: 6500K, 90 CRI | B84: - | C84: - | D84: - | E84: - | F84: - | G84: 150 | H84: - | I84: - | J84: - | K84: - | L84: - | M84: - | N84: - | O84: - | P84: - | Q84: - | R84: - | S84: - | T84: - | U84: - | V84: - | W84: - | X84: - | Y84: 150
A85: Typical Flux
A86: 2200K,80 CRI | B86: - | C86: - | D86: - | E86: - | F86: - | G86: - | H86: - | I86: - | J86: - | K86: - | L86: - | M86: - | N86: - | O86: - | P86: - | Q86: - | R86: - | S86: - | T86: - | U86: - | V86: - | W86: - | X86: - | Y86: 114
A87: 2700K, 70 CRI | B87: - | C87: - | D87: - | E87: - | F87: - | G87: 137 | H87: 183 | I87: - | J87: - | K87: - | L87: - | M87: 692 | N87: 692 | O87: - | P87: - | Q87: - | R87: - | S87: - | T87: - | U87: - | V87: - | W87: - | X87: - | Y87: 145
A88: 2700K, 80 CRI | B88: 26 | C88: 70 | D88: 60 | E88: 115 | F88: 118 | G88: 125 | H88: 163 | I88: 389 | J88: 389 | K88: 579 | L88: 579 | M88: 615 | N88: 615 | O88: 120 | P88: 24 | Q88: 115 | R88: 125 | S88: 62 | T88: 63 | U88: 75 | V88: - | W88: - | X88: - | Y88: 133
A89: 2700K, 90 CRI | B89: - | C89: - | D89: - | E89: 100 | F89: 103 | G89: 107 | H89: 140 | I89: - | J89: - | K89: - | L89: - | M89: 520 | N89: 520 | O89: 105 | P89: - | Q89: - | R89: 108 | S89: 54 | T89: - | U89: - | V89: 102 | W89: 108 | X89: 115 | Y89: 117
A90: 2700K, 94 CRI | B90: - | C90: - | D90: - | E90: - | F90: - | G90: - | H90: 135 | I90: - | J90: - | K90: - | L90: - | M90: - | N90: - | O90: - | P90: - | Q90: - | R90: - | S90: - | T90: - | U90: - | V90: - | W90: - | X90: - | Y90: -
A91: 3000K, 70 CRI | B91: - | C91: - | D91: - | E91: - | F91: - | G91: 143 | H91: 187 | I91: - | J91: - | K91: - | L91: - | M91: 709 | N91: 709 | O91: - | P91: - | Q91: - | R91: - | S91: - | T91: - | U91: - | V91: - | W91: - | X91: - | Y91: 150
A92: 3000K, 80 CRI | B92: 27 | C92: 74 | D92: 64 | E92: 120 | F92: 122 | G92: 129 | H92: 170 | I92: 401 | J92: 401 | K92: 600 | L92: 600 | M92: 630 | N92: 630 | O92: 125 | P92: 26 | Q92: 120 | R92: 130 | S92: 64 | T92: 68 | U92: 78 | V92: - | W92: - | X92: - | Y92: 137
A93: 3000K, 90 CRI | B93: - | C93: - | D93: - | E93: 100 | F93: 107 | G93: 109 | H93: 143 | I93: - | J93: - | K93: - | L93: - | M93: 535 | N93: 535 | O93: 110 | P93: - | Q93: - | R93: 108 | S93: 55 | T93: - | U93: - | V93: 105 | W93: 110 | X93: 116 | Y93: 121
A94: 3500K, 70 CRI | B94: - | C94: - | D94: - | E94: - | F94: - | G94: 144 | H94: 190 | I94: - | J94: - | K94: - | L94: - | M94: 726 | N94: 726 | O94: - | P94: - | Q94: - | R94: - | S94: - | T94: - | U94: - | V94: - | W94: - | X94: - | Y94: 154
A95: 3500K, 80 CRI | B95: 27 | C95: 74 | D95: 64 | E95: 123 | F95: 129 | G95: 132 | H95: 175 | I95: 412 | J95: 412 | K95: 614 | L95: 614 | M95: 650 | N95: 650 | O95: 125 | P95: 26 | Q95: 120 | R95: 130 | S95: 64 | T95: 68 | U95: 78 | V95: - | W95: - | X95: - | Y95: 140
A96: 3500K, 90 CRI | B96: - | C96: - | D96: - | E96: 102 | F96: 114 | G96: 112 | H96: - | I96: - | J96: - | K96: - | L96: - | M96: - | N96: - | O96: 110 | P96: - | Q96: - | R96: 108 | S96: 57 | T96: - | U96: - | V96: 105 | W96: 110 | X96: 116 | Y96: 124
A97: 4000K, 70 CRI | B97: - | C97: - | D97: - | E97: - | F97: - | G97: 145 | H97: 192 | I97: - | J97: - | K97: - | L97: - | M97: 736 | N97: 736 | O97: - | P97: - | Q97: - | R97: - | S97: - | T97: - | U97: - | V97: - | W97: - | X97: - | Y97: 158
A98: 4000K, 80 CRI | B98: 29 | C98: 77 | D98: 70 | E98: 127 | F98: 129 | G98: 136 | H98: 179 | I98: 430 | J98: 430 | K98: 626 | L98: 626 | M98: 670 | N98: 670 | O98: 130 | P98: 28 | Q98: 127 | R98: 140 | S98: 70 | T98: 72 | U98: 83 | V98: - | W98: - | X98: - | Y98: 144
A99: 4000K, 90 CRI | B99: - | C99: - | D99: - | E99: 105 | F99: 114 | G99: 116 | H99: 154 | I99: - | J99: - | K99: - | L99: - | M99: 575 | N99: 575 | O99: 115 | P99: - | Q99: - | R99: 114 | S99: 55 | T99: - | U99: - | V99: 111 | W99: 114 | X99: 121 | Y99: 127
A100: 4000K, 94 CRI | B100: - | C100: - | D100: - | E100: - | F100: - | G100: - | H100: 148 | I100: - | J100: - | K100: - | L100: - | M100: - | N100: - | O100: - | P100: - | Q100: - | R100: - | S100: - | T100: - | U100: - | V100: - | W100: - | X100: - | Y100: -
A101: 4500K, 70 CRI | B101: - | C101: - | D101: - | E101: - | F101: - | G101: - | H101: 192 | I101: - | J101: - | K101: - | L101: - | M101: 736 | N101: 736 | O101: - | P101: - | Q101: - | R101: - | S101: - | T101: - | U101: - | V101: - | W101: - | X101: - | Y101: 158
A102: 4500K, 80 CRI | B102: - | C102: - | D102: - | E102: - | F102: - | G102: - | H102: 179 | I102: - | J102: - | K102: - | L102: - | M102: 670 | N102: 670 | O102: - | P102: - | Q102: - | R102: - | S102: - | T102: - | U102: - | V102: - | W102: - | X102: - | Y102: 144
A103: 4500K, 90 CRI | B103: - | C103: - | D103: - | E103: - | F103: - | G103: - | H103: - | I103: - | J103: - | K103: - | L103: - | M103: - | N103: - | O103: - | P103: - | Q103: - | R103: - | S103: - | T103: - | U103: - | V103: - | W103: - | X103: - | Y103: 127
A104: 5000K, 70 CRI | B104: - | C104: - | D104: - | E104: - | F104: - | G104: 145 | H104: 192 | I104: - | J104: - | K104: - | L104: - | M104: 736 | N104: 736 | O104: - | P104: - | Q104: - | R104: - | S104: - | T104: - | U104: - | V104: - | W104: - | X104: - | Y104: 158
A105: 5000K, 80 CRI | B105: 29 | C105: 77 | D105: 70 | E105: 127 | F105: 129 | G105: 136 | H105: 179 | I105: 435 | J105: 435 | K105: 629 | L105: 629 | M105: 670 | N105: 670 | O105: 130 | P105: 28 | Q105: 127 | R105: 140 | S105: 71 | T105: 72 | U105: 83 | V105: - | W105: - | X105: - | Y105: 144
A106: 5000K, 90 CRI | B106: - | C106: - | D106: - | E106: 105 | F106: 114 | G106: 116 | H106: - | I106: - | J106: - | K106: - | L106: - | M106: - | N106: - | O106: 115 | P106: - | Q106: - | R106: 114 | S106: 59 | T106: - | U106: - | V106: 111 | W106: 114 | X106: 121 | Y106: 127
A107: 5700K, 70 CRI | B107: - | C107: - | D107: - | E107: - | F107: - | G107: 145 | H107: 192 | I107: - | J107: - | K107: - | L107: - | M107: 731 | N107: 731 | O107: - | P107: - | Q107: - | R107: - | S107: - | T107: - | U107: - | V107: - | W107: - | X107: - | Y107: 155
A108: 5700K, 80 CRI | B108: 29 | C108: 77 | D108: 70 | E108: 127 | F108: 129 | G108: 136 | H108: 177 | I108: 435 | J108: 435 | K108: 629 | L108: 629 | M108: 670 | N108: 670 | O108: 130 | P108: 28 | Q108: 127 | R108: 140 | S108: 71 | T108: 72 | U108: 83 | V108: - | W108: - | X108: - | Y108: 143
A109: 5700K, 90 CRI | B109: - | C109: - | D109: - | E109: 105 | F109: 114 | G109: 116 | H109: - | I109: - | J109: - | K109: - | L109: - | M109: - | N109: - | O109: 115 | P109: - | Q109: - | R109: 114 | S109: 59 | T109: - | U109: - | V109: 111 | W109: 114 | X109: 121 | Y109: 126
A110: 6500K, 70 CRI | B110: - | C110: - | D110: - | E110: - | F110: - | G110: 144 | H110: 190 | I110: - | J110: - | K110: - | L110: - | M110: 720 | N110: 720 | O110: - | P110: - | Q110: - | R110: - | S110: - | T110: - | U110: - | V110: - | W110: - | X110: - | Y110: 153
A111: 6500K, 80 CRI | B111: 29 | C111: 77 | D111: 70 | E111: 125 | F111: 130 | G111: 134 | H111: 176 | I111: 432 | J111: 432 | K111: 624 | L111: 624 | M111: 668 | N111: 668 | O111: 130 | P111: 28 | Q111: 127 | R111: 140 | S111: 70 | T111: 72 | U111: 82 | V111: - | W111: - | X111: - | Y111: 141
A112: 6500K, 90 CRI | B112: - | C112: - | D112: - | E112: - | F112: - | G112: 114 | H112: - | I112: - | J112: - | K112: - | L112: - | M112: - | N112: - | O112: - | P112: - | Q112: - | R112: - | S112: - | T112: - | U112: - | V112: - | W112: - | X112: - | Y112: 125
A113: Typical Eff
A114: 2200K,80 CRI | B114: - | C114: - | D114: - | E114: - | F114: - | G114: - | H114: - | I114: - | J114: - | K114: - | L114: - | M114: - | N114: - | O114: - | P114: - | Q114: - | R114: - | S114: - | T114: - | U114: - | V114: - | W114: - | X114: - | Y114: 126
A115: 2700K, 70 CRI | B115: - | C115: - | D115: - | E115: - | F115: - | G115: 146 | H115: 185 | I115: - | J115: - | K115: - | L115: - | M115: 156 | N115: 156 | O115: - | P115: - | Q115: - | R115: - | S115: - | T115: - | U115: - | V115: - | W115: - | X115: - | Y115: 159
A116: 2700K, 80 CRI | B116: 144 | C116: 156 | D116: 125 | E116: 121 | F116: 129 | G116: 133 | H116: 165 | I116: 131 | J116: 131 | K116: 125 | L116: 125 | M116: 139 | N116: 139 | O116: 133 | P116: 133 | Q116: 124 | R116: 134 | S116: 125 | T116: 131 | U116: 117 | V116: - | W116: - | X116: - | Y116: 146
A117: 2700K, 90 CRI | B117: - | C117: - | D117: - | E117: 105 | F117: 112 | G117: 114 | H117: 141 | I117: - | J117: - | K117: - | L117: - | M117: 117 | N117: 117 | O117: 116 | P117: - | Q117: - | R117: 116 | S117: 109 | T117: - | U117: - | V117: 109 | W117: 116 | X117: 125 | Y117: 128
A118: 2700K, 94 CRI | B118: - | C118: - | D118: - | E118: - | F118: - | G118: - | H118: 136 | I118: - | J118: - | K118: - | L118: - | M118: - | N118: - | O118: - | P118: - | Q118: - | R118: - | S118: - | T118: - | U118: - | V118: - | W118: - | X118: - | Y118: -
A119: 3000K, 70 CRI | B119: - | C119: - | D119: - | E119: - | F119: - | G119: 153 | H119: 189 | I119: - | J119: - | K119: - | L119: - | M119: 160 | N119: 160 | O119: - | P119: - | Q119: - | R119: - | S119: - | T119: - | U119: - | V119: - | W119: - | X119: - | Y119: 164
A120: 3000K, 80 CRI | B120: 150 | C120: 164 | D120: 133 | E120: 126 | F120: 133 | G120: 138 | H120: 172 | I120: 135 | J120: 135 | K120: 129 | L120: 129 | M120: 142 | N120: 142 | O120: 138 | P120: 144 | Q120: 129 | R120: 140 | S120: 129 | T120: 142 | U120: 122 | V120: - | W120: - | X120: - | Y120: 150
A121: 3000K, 90 CRI | B121: - | C121: - | D121: - | E121: 105 | F121: 117 | G121: 116 | H121: 144 | I121: - | J121: - | K121: - | L121: - | M121: 121 | N121: 121 | O121: 122 | P121: - | Q121: - | R121: 116 | S121: 111 | T121: - | U121: - | V121: 112 | W121: 118 | X121: 126 | Y121: 132
A122: 3500K, 70 CRI | B122: - | C122: - | D122: - | E122: - | F122: - | G122: 154 | H122: 192 | I122: - | J122: - | K122: - | L122: - | M122: 164 | N122: 164 | O122: - | P122: - | Q122: - | R122: - | S122: - | T122: - | U122: - | V122: - | W122: - | X122: - | Y122: 169
A123: 3500K, 80 CRI | B123: 150 | C123: 164 | D123: 133 | E123: 129 | F123: 133 | G123: 141 | H123: 177 | I123: 138 | J123: 138 | K123: 132 | L123: 132 | M123: 146 | N123: 146 | O123: 138 | P123: 144 | Q123: 129 | R123: 140 | S123: 129 | T123: 142 | U123: 122 | V123: - | W123: - | X123: - | Y123: 154
A124: 3500K, 90 CRI | B124: - | C124: - | D124: - | E124: 107 | F124: 117 | G124: 119 | H124: - | I124: - | J124: - | K124: - | L124: - | M124: - | N124: - | O124: 122 | P124: - | Q124: - | R124: 116 | S124: 115 | T124: - | U124: - | V124: 112 | W124: 118 | X124: 126 | Y124: 136
A125: 4000K, 70 CRI | B125: - | C125: - | D125: - | E125: - | F125: - | G125: 155 | H125: 194 | I125: - | J125: - | K125: - | L125: - | M125: 166 | N125: 166 | O125: - | P125: - | Q125: - | R125: - | S125: - | T125: - | U125: - | V125: - | W125: - | X125: - | Y125: 173
A126: 4000K, 80 CRI | B126: 161 | C126: 171 | D126: 146 | E126: 134 | F126: 141 | G126: 145 | H126: 181 | I126: 144 | J126: 144 | K126: 135 | L126: 135 | M126: 151 | N126: 151 | O126: 144 | P126: 156 | Q126: 137 | R126: 151 | S126: 140 | T126: 150 | U126: 129 | V126: - | W126: - | X126: - | Y126: 158
A127: 4000K, 90 CRI | B127: - | C127: - | D127: - | E127: 111 | F127: 125 | G127: 124 | H127: 156 | I127: - | J127: - | K127: - | L127: - | M127: 130 | N127: 130 | O127: 127 | P127: - | Q127: - | R127: 123 | S127: 111 | T127: - | U127: - | V127: 118 | W127: 123 | X127: 132 | Y127: 139
A128: 4000K, 94 CRI | B128: - | C128: - | D128: - | E128: - | F128: - | G128: - | H128: 150 | I128: - | J128: - | K128: - | L128: - | M128: - | N128: - | O128: - | P128: - | Q128: - | R128: - | S128: - | T128: - | U128: - | V128: - | W128: - | X128: - | Y128: -
A129: 4500K, 70 CRI | B129: - | C129: - | D129: - | E129: - | F129: - | G129: - | H129: 194 | I129: - | J129: - | K129: - | L129: - | M129: 166 | N129: 166 | O129: - | P129: - | Q129: - | R129: - | S129: - | T129: - | U129: - | V129: - | W129: - | X129: - | Y129: 173
A130: 4500K, 80 CRI | B130: - | C130: - | D130: - | E130: - | F130: - | G130: - | H130: 181 | I130: - | J130: - | K130: - | L130: - | M130: 151 | N130: 151 | O130: - | P130: - | Q130: - | R130: - | S130: - | T130: - | U130: - | V130: - | W130: - | X130: - | Y130: 158
A131: 4500K, 90 CRI | B131: - | C131: - | D131: - | E131: - | F131: - | G131: - | H131: - | I131: - | J131: - | K131: - | L131: - | M131: - | N131: - | O131: - | P131: - | Q131: - | R131: - | S131: - | T131: - | U131: - | V131: - | W131: - | X131: - | Y131: 139
A132: 5000K, 70 CRI | B132: - | C132: - | D132: - | E132: - | F132: - | G132: 155 | H132: 194 | I132: - | J132: - | K132: - | L132: - | M132: 166 | N132: 166 | O132: - | P132: - | Q132: - | R132: - | S132: - | T132: - | U132: - | V132: - | W132: - | X132: - | Y132: 173
A133: 5000K, 80 CRI | B133: 161 | C133: 171 | D133: 146 | E133: 134 | F133: 141 | G133: 145 | H133: 181 | I133: 146 | J133: 146 | K133: 135 | L133: 135 | M133: 151 | N133: 151 | O133: 144 | P133: 156 | Q133: 137 | R133: 151 | S133: 143 | T133: 150 | U133: 129 | V133: - | W133: - | X133: - | Y133: 158
A134: 5000K, 90 CRI | B134: - | C134: - | D134: - | E134: 111 | F134: 125 | G134: 124 | H134: - | I134: - | J134: - | K134: - | L134: - | M134: - | N134: - | O134: 127 | P134: - | Q134: - | R134: 123 | S134: 119 | T134: - | U134: - | V134: 118 | W134: 123 | X134: 132 | Y134: 139
A135: 5700K, 70 CRI | B135: - | C135: - | D135: - | E135: - | F135: - | G135: 155 | H135: 194 | I135: - | J135: - | K135: - | L135: - | M135: 165 | N135: 165 | O135: - | P135: - | Q135: - | R135: - | S135: - | T135: - | U135: - | V135: - | W135: - | X135: - | Y135: 170
A136: 5700K, 80 CRI | B136: 161 | C136: 171 | D136: 146 | E136: 134 | F136: 141 | G136: 145 | H136: 179 | I136: 146 | J136: 146 | K136: 135 | L136: 135 | M136: 151 | N136: 151 | O136: 144 | P136: 156 | Q136: 137 | R136: 151 | S136: 143 | T136: 150 | U136: 129 | V136: - | W136: - | X136: - | Y136: 156
A137: 5700K, 90 CRI | B137: - | C137: - | D137: - | E137: 111 | F137: 125 | G137: 124 | H137: - | I137: - | J137: - | K137: - | L137: - | M137: - | N137: - | O137: 127 | P137: - | Q137: - | R137: 123 | S137: 119 | T137: - | U137: - | V137: 118 | W137: 123 | X137: 132 | Y137: 139
A138: 6500K, 70 CRI | B138: - | C138: - | D138: - | E138: - | F138: - | G138: 154 | H138: 192 | I138: - | J138: - | K138: - | L138: - | M138: 162 | N138: 162 | O138: - | P138: - | Q138: - | R138: - | S138: - | T138: - | U138: - | V138: - | W138: - | X138: - | Y138: 168
A139: 6500K, 80 CRI | B139: 161 | C139: 171 | D139: 146 | E139: 132 | F139: 142 | G139: 143 | H139: 178 | I139: 145 | J139: 145 | K139: 134 | L139: 134 | M139: 151 | N139: 151 | O139: 144 | P139: 156 | Q139: 137 | R139: 151 | S139: 141 | T139: 150 | U139: 128 | V139: - | W139: - | X139: - | Y139: 155
A140: 6500K, 90 CRI | B140: - | C140: - | D140: - | E140: - | F140: - | G140: 122 | H140: - | I140: - | J140: - | K140: - | L140: - | M140: - | N140: - | O140: - | P140: - | Q140: - | R140: - | S140: - | T140: - | U140: - | V140: - | W140: - | X140: - | Y140: 137
A141: Calculation
A142: Products | B142: mA | C142: Tjs | D142: mA-Vf | E142: mA-Flux | F142: Tj-Vf | G142: Tj-Flux | H142: Flux-mA | I142: Tj | J142: Target Lum | K142: Typical Lum | L142: % | M142: mA-Vf-2 | N142: Tj2 | O142: Tj-Flux 2 | P142: Tj-vf | Q142: Flux-mA-2 | R142: -0.02 | S142: ma-vf-3
A143: 2835 0.2W 3V | B143: =Simulator!$M$14 -> 120 | C143: 25 | D143: =D172*$B$143^4+D173*$B$143^3+D174*$B$143^2+D175*$B$143+D176 -> 3.189598541 | E143: =E172*$B$143^4+E173*$B$143^3+E174*$B$143^2+E175*$B$143+E176 -> 1.810639402 | F143: =F172*$I$143^4+F173*$I$143^3+F174*$I$143^2+F175*$I$143+F176 -> -0.01633958568 | G143: =G172*$I$143^4+G173*$I$143^3+G174*$I$143^2+G175*$I$143+G176 -> 0.9865589922 | H143: =IF(N143<0,"-",H172*L143^4+H173*L143^3+H174*L143^2+H175*L143+H176) -> 450.4158216 | I143: =Simulator!$G$8+C143*B143*D143/1000 -> 34.56879562 | J143: =Simulator!$M$44 -> 107 | K143: =Simulator!K47 -> 26 | L143: =J143/K143/O143 -> 4.133360122 | M143: =M172*Q143^4+M173*Q143^3+M174*Q143^2+M175*Q143+M176 -> 0.293005739 | N143: =Simulator!$G$8+C143*M143*Q143/1000 -> 28.2672464 | O143: =O172*N143^4+O173*N143^3+O174*N143^2+O175*N143+O176 -> 0.9956511154 | P143: =P172*$N$143^4+P173*$N$143^3+P174*$N$143^2+P175*$N$143+P176 -> -0.005830746024 | Q143: =Q172*R143^4+Q173*R143^3+Q174*R143^2+Q175*R143+Q176 -> 446.0317277 | R143: =J143/K143 -> 4.115384615 | S143: =S172*H143^4+S173*H143^3+S174*H143^2+S175*H143+S176 -> 0.08509129469
A144: 2835 0.5W 3V | B144: =Simulator!$M$14 -> 120 | C144: 12 | D144: =D182*B144^4+D183*B144^3+D184*B144^2+D185*B144+D186 -> 3.126602829 | E144: =E182*B144^4+E183*B144^3+E184*B144^2+E185*B144+E186 -> 0.8306322658 | F144: =F182*I144^4+F183*I144^3+F184*I144^2+F185*I144+F186 -> -0.005575401973 | G144: =G182*I144^4+G183*I144^3+G184*I144^2+G185*I144+G186 -> 0.9912369207 | H144: =IF(L144>5,"-",IF(M144<0,"-",H182*L144^4+H183*L144^3+H184*L144^2+H185*L144+H186)) -> 340.1368943 | I144: =Simulator!$G$8+C144*B144*D144/1000 -> 29.50230807 | J144: =Simulator!$M$44 -> 107 | K144: =Simulator!K49 -> 60 | L144: =J144/K144/O144 -> 1.797385253 | M144: =M182*Q144^4+M183*Q144^3+M184*Q144^2+M185*Q144+M186 -> 0.996453484 | N144: =Simulator!$G$8+C144*M144*Q144/1000 -> 29.01507976 | O144: =O182*N144^4+O183*N144^3+O184*N144^2+O185*N144+O186 -> 0.9921820212 | P144: =P182*N144^4+P183*N144^3+P184*N144^2+P185*N144+P186 -> -0.004997387892 | Q144: =Q182*R144^4+Q183*R144^3+Q184*R144^2+Q185*R144+Q186 -> 335.7808324 | R144: =J144/K144 -> 1.783333333 | S144: =S182*H144^4+S183*H144^3+S184*H144^2+S185*H144+S186 -> 0.7931520791
A145: 2835 1W 9V Gen2 | B145: =Simulator!$M$14 -> 120 | C145: 10 | D145: =D187*B145^4+D188*B145^3+D189*B145^2+D190*B145+D191 -> 9.759758624 | E145: =E187*B145^4+E188*B145^3+E189*B145^2+E190*B145+E191 -> 1.164793573 | F145: =F187*I145^4+F188*I145^3+F189*I145^2+F190*I145+F191 -> -0.04008581418 | G145: =G187*I145^4+G188*I145^3+G189*I145^2+G190*I145+G191 -> 0.9786285368 | H145: =IF(M145<0,"-",H187*L145^4+H188*L145^3+H189*L145^2+H190*L145+H191) -> 93.67477356 | I145: =Simulator!$G$8+C145*B145*D145/1000 -> 36.71171035 | J145: =Simulator!$M$44 -> 107 | K145: =Simulator!K55 -> 115 | L145: 0.9456273215 | M145: =M187*Q145^4+M188*Q145^3+M189*Q145^2+M190*Q145+M191 -> 9.392319334 | N145: =Simulator!$G$8+C145*M145*Q145/1000 -> 33.63436339 | O145: =O187*N145^4+O188*N145^3+O189*N145^2+O190*N145+O191 -> 0.9839339045 | P145: =P187*N145^4+P188*N145^3+P189*N145^2+P190*N145+P191 -> -0.02904484736 | Q145: =Q187*R145^4+Q188*R145^3+Q189*R145^2+Q190*R145+Q191 -> 91.93004498 | R145: 0.9304347826 | S145: =S187*H145^4+S188*H145^3+S189*H145^2+S190*H145+S191 -> 9.415935101
A146: 2835 1W 12V | B146: =Simulator!$M$14 -> 120 | C146: 10 | D146: =D192*B146^4+D193*B146^3+D194*B146^2+D195*B146+D196 -> 12.49565696 | E146: =E192*B146^4+E193*B146^3+E194*B146^2+E195*B146+E196 -> 1.443318912 | F146: =F192*I146^4+F193*I146^3+F194*I146^2+F195*I146+F196 -> -0.1165962951 | G146: =G192*I146^4+G193*I146^3+G194*I146^2+G195*I146+G196 -> 0.9745527525 | H146: =IF(M146<0,"-",H192*L146^4+H193*L146^3+H194*L146^2+H195*L146+H196) -> 67.83778497 | I146: =Simulator!$G$8+C146*B146*D146/1000 -> 39.99478835 | J146: =Simulator!$M$44 -> 107 | K146: =Simulator!K60 -> 118 | L146: 0.9191641779 | M146: =M192*Q146^4+M193*Q146^3+M194*Q146^2+M195*Q146+M196 -> 12.07950252 | N146: =Simulator!$G$8+C146*M146*Q146/1000 -> 33.06526025 | O146: =O192*N146^4+O193*N146^3+O194*N146^2+O195*N146+O196 -> 0.9865263277 | P146: =P192*N146^4+P193*N146^3+P194*N146^2+P195*N146+P196 -> -0.06622365908 | Q146: =Q192*R146^4+Q193*R146^3+Q194*R146^2+Q195*R146+Q196 -> 66.76814907 | R146: 0.906779661 | S146: =S192*H146^4+S193*H146^3+S194*H146^2+S195*H146+S196 -> 12.09567218
A147: 3030 1W 6V | B147: =Simulator!$M$14 -> 120 | C147: 12 | D147: =D197*B147^4+D198*B147^3+D199*B147^2+D200*B147+D201 -> 6.112076128 | E147: =E197*B147^4+E198*B147^3+E199*B147^2+E200*B147+E201 -> 0.8186710874 | F147: =F197*I147^4+F198*I147^3+F199*I147^2+F200*I147+F201 -> -0.02340043562 | G147: =G197*I147^4+G198*I147^3+G199*I147^2+G200*I147+G201 -> 0.9831336147 | H147: =IF(M147<0,"-",H197*L147^4+H198*L147^3+H199*L147^2+H200*L147+H201) -> 128.8526271 | I147: =Simulator!$G$8+C147*B147*D147/1000 -> 33.80138962 | J147: =Simulator!$M$44 -> 107 | K147: =Simulator!K62 -> 125 | L147: 0.871540961 | M147: =M197*Q147^4+M198*Q147^3+M199*Q147^2+M200*Q147+M201 -> 6.141947093 | N147: =Simulator!$G$8+C147*M147*Q147/1000 -> 34.30863974 | O147: =O197*N147^4+O198*N147^3+O199*N147^2+O200*N147+O201 -> 0.9821684101 | P147: =P197*N147^4+P198*N147^3+P199*N147^2+P200*N147+P201 -> -0.02476640737 | Q147: =Q197*R147^4+Q198*R147^3+Q199*R147^2+Q200*R147+Q201 -> 126.2987073 | R147: 0.856 | S147: =S197*H147^4+S198*H147^3+S199*H147^2+S200*H147+S201 -> 6.153940442
A148: 5050 1W 24V | B148: =Simulator!$M$14 -> 120 | C148: 3.1 | D148: =D202*B148^4+D203*B148^3+D204*B148^2+D205*B148+D206 -> 23.61500696 | E148: =E202*B148^4+E203*B148^3+E204*B148^2+E205*B148+E206 -> 2.513939793 | F148: =F202*I148^4+F203*I148^3+F204*I148^2+F205*I148+F206 -> -0.1564575133 | G148: =G202*I148^4+G203*I148^3+G204*I148^2+G205*I148+G206 -> 0.9880433898 | H148: =IF(M148<0,"-",H202*L148^4+H203*L148^3+H204*L148^2+H205*L148+H206) -> 29.35551709 | I148: =Simulator!$G$8+C148*B148*D148/1000 -> 33.78478259 | J148: =Simulator!$M$44 -> 107 | K148: =Simulator!K64 -> 163 | L148: 0.6579890182 | M148: =M202*Q148^4+M203*Q148^3+M204*Q148^2+M205*Q148+M206 -> 21.5869472 | N148: =Simulator!$G$8+C148*M148*Q148/1000 -> 26.95975897 | O148: =O202*N148^4+O203*N148^3+O204*N148^2+O205*N148+O206 -> 0.9976484404 | P148: =P202*N148^4+P203*N148^3+P204*N148^2+P205*N148+P206 -> -0.04095941911 | Q148: =Q202*R148^4+Q203*R148^3+Q204*R148^2+Q205*R148+Q206 -> 29.28530405 | R148: 0.6564417178 | S148: =S202*H148^4+S203*H148^3+S204*H148^2+S205*H148+S206 -> 21.58884976
A149: 5050 3W 9V | B149: =Simulator!$M$14 -> 120 | C149: 3.3 | D149: =D207*B149^4+D208*B149^3+D209*B149^2+D210*B149+D211 -> 8.483181755 | E149: =E207*B149^4+E208*B149^3+E209*B149^2+E210*B149+E211 -> 0.4085245398 | F149: =F207*I149^4+F208*I149^3+F209*I149^2+F210*I149+F211 -> -0.01795439514 | G149: =G207*I149^4+G208*I149^3+G209*I149^2+G210*I149+G211 -> 0.9943263522 | H149: =IF(M149<0,"-",H207*L149^4+H208*L149^3+H209*L149^2+H210*L149+H211) -> 79.82350928 | I149: =Simulator!$G$8+C149*B149*D149/1000 -> 28.35933997 | J149: =Simulator!$M$44 -> 107 | K149: =Simulator!K65 -> 389 | L149: 0.2761112004 | M149: =M207*Q149^4+M208*Q149^3+M209*Q149^2+M210*Q149+M211 -> 8.271845751 | N149: =Simulator!$G$8+C149*M149*Q149/1000 -> 27.17044309 | O149: =O207*N149^4+O208*N149^3+O209*N149^2+O210*N149+O211 -> 0.9962082921 | P149: =P207*N149^4+P208*N149^3+P209*N149^2+P210*N149+P211 -> -0.01168976809 | Q149: =Q207*R149^4+Q208*R149^3+Q209*R149^2+Q210*R149+Q211 -> 79.5118824 | R149: 0.2750642674 | S149: =S207*H149^4+S208*H149^3+S209*H149^2+S210*H149+S211 -> 8.273606952
A150: 5050 3W 18V | B150: =Simulator!$M$14 -> 120 | C150: 3.3 | D150: =D212*B150^4+D213*B150^3+D214*B150^2+D215*B150+D216 -> 17.97801318 | E150: =E212*B150^4+E213*B150^3+E214*B150^2+E215*B150+E216 -> 0.7758976275 | F150: =F212*I150^4+F213*I150^3+F214*I150^2+F215*I150+F216 -> -0.1455186647 | G150: =G212*I150^4+G213*I150^3+G214*I150^2+G215*I150+G216 -> 0.9880813828 | H150: =IF(M150<0,"-",H212*L150^4+H213*L150^3+H214*L150^2+H215*L150+H216) -> 39.91033559 | I150: =Simulator!$G$8+C150*B150*D150/1000 -> 32.11929322 | J150: =Simulator!$M$44 -> 107 | K150: =Simulator!K66 -> 389 | L150: 0.2761111643 | M150: =M212*Q150^4+M213*Q150^3+M214*Q150^2+M215*Q150+M216 -> 16.54364257 | N150: =Simulator!$G$8+C150*M150*Q150/1000 -> 27.17035979 | O150: =O212*N150^4+O213*N150^3+O214*N150^2+O215*N150+O216 -> 0.9962084223 | P150: =P212*N150^4+P213*N150^3+P214*N150^2+P215*N150+P216 -> -0.04366890152 | Q150: =Q212*R150^4+Q213*R150^3+Q214*R150^2+Q215*R150+Q216 -> 39.75453305 | R150: 0.2750642674 | S150: =S212*H150^4+S213*H150^3+S214*H150^2+S215*H150+S216 -> 16.54716467
A151: 5050 5W 9V | B151: =Simulator!$M$14 -> 120 | C151: 1.9 | D151: =D217*B151^4+D218*B151^3+D219*B151^2+D220*B151+D221 -> 8.217126466 | E151: =E217*B151^4+E218*B151^3+E219*B151^2+E220*B151+E221 -> 0.2668433615 | F151: =F217*I151^4+F218*I151^3+F219*I151^2+F220*I151+F221 -> -0.008607749388 | G151: =G217*I151^4+G218*I151^3+G219*I151^2+G220*I151+G221 -> 0.9967104939 | H151: =IF(M151<0,"-",H217*L151^4+H218*L151^3+H219*L151^2+H220*L151+H221) -> 82.62509548 | I151: =Simulator!$G$8+C151*B151*D151/1000 -> 26.87350483 | J151: =Simulator!$M$44 -> 107 | K151: =Simulator!K67 -> 579 | L151: 0.1852191413 | M151: =M217*Q151^4+M218*Q151^3+M219*Q151^2+M220*Q151+M221 -> 8.070662006 | N151: =Simulator!$G$8+C151*M151*Q151/1000 -> 26.26410374 | O151: =O217*N151^4+O218*N151^3+O219*N151^2+O220*N151+O221 -> 0.9977445115 | P151: =P217*N151^4+P218*N151^3+P219*N151^2+P220*N151+P221 -> -0.005207182451 | Q151: =Q217*R151^4+Q218*R151^3+Q219*R151^2+Q220*R151+Q221 -> 82.43657804 | R151: 0.1848013817 | S151: =S217*H151^4+S218*H151^3+S219*H151^2+S220*H151+S221 -> 8.071433414
A152: 5050 5W 36V | B152: =Simulator!$M$14 -> 120 | C152: 1.9 | D152: =D222*B152^4+D223*B152^3+D224*B152^2+D225*B152+D226 -> 36.97750246 | E152: =E222*B152^4+E223*B152^3+E224*B152^2+E225*B152+E226 -> 0.9651633166 | F152: =F222*I152^4+F223*I152^3+F224*I152^2+F225*I152+F226 -> -0.1742333477 | G152: =G222*I152^4+G223*I152^3+G224*I152^2+G225*I152+G226 -> 0.9850918773 | H152: =IF(M152<0,"-",H222*L152^4+H223*L152^3+H224*L152^2+H225*L152+H226) -> 20.65581615 | I152: =Simulator!$G$8+C152*B152*D152/1000 -> 33.43087056 | J152: =Simulator!$M$44 -> 107 | K152: =Simulator!K68 -> 579 | L152: 0.1852191322 | M152: =M222*Q152^4+M223*Q152^3+M224*Q152^2+M225*Q152+M226 -> 32.28261361 | N152: =Simulator!$G$8+C152*M152*Q152/1000 -> 26.26407445 | O152: =O222*N152^4+O223*N152^3+O224*N152^2+O225*N152+O226 -> 0.997744561 | P152: =P222*N152^4+P223*N152^3+P224*N152^2+P225*N152+P226 -> -0.02082196208 | Q152: =Q222*R152^4+Q223*R152^3+Q224*R152^2+Q225*R152+Q226 -> 20.60868891 | R152: 0.1848013817 | S152: =S222*H152^4+S223*H152^3+S224*H152^2+S225*H152+S226 -> 32.28569912
A153: 5050 5W 9V Gen2 | B153: =Simulator!$M$14 -> 120 | C153: 1.9 | D153: =D227*B153^4+D228*B153^3+D229*B153^2+D230*B153+D231 -> 8.085248068 | E153: =E227*B153^4+E228*B153^3+E229*B153^2+E230*B153+E231 -> 0.2554742893 | F153: =F227*I153^4+F228*I153^3+F229*I153^2+F230*I153+F231 -> -0.00897624771 | G153: =G227*I153^4+G228*I153^3+G229*I153^2+G230*I153+G231 -> 0.9971555716 | H153: =IF(M153<0,"-",H227*L153^4+H228*L153^3+H229*L153^2+H230*L153+H231) -> 81.19871515 | I153: =Simulator!$G$8+C153*B153*D153/1000 -> 26.84343656 | J153: =Simulator!$M$44 -> 107 | K153: =Simulator!K69 -> 615 | L153: 0.1743280986 | M153: =M227*Q153^4+M228*Q153^3+M229*Q153^2+M230*Q153+M231 -> 7.969981416 | N153: =Simulator!$G$8+C153*M153*Q153/1000 -> 26.22705688 | O153: =O227*N153^4+O228*N153^3+O229*N153^2+O230*N153+O231 -> 0.9980246511 | P153: =P227*N153^4+P228*N153^3+P229*N153^2+P230*N153+P231 -> -0.005480342158 | Q153: =Q227*R153^4+Q228*R153^3+Q229*R153^2+Q230*R153+Q231 -> 81.03148235 | R153: 0.1739837398 | S153: =S227*H153^4+S228*H153^3+S229*H153^2+S230*H153+S231 -> 7.970498113
A154: 5050 5W 36V Gen2 | B154: =Simulator!$M$14 -> 120 | C154: 1.9 | D154: =D232*B154^4+D233*B154^3+D234*B154^2+D235*B154+D236 -> 35.33740563 | E154: =E232*B154^4+E233*B154^3+E234*B154^2+E235*B154+E236 -> 0.9641288251 | F154: =F232*I154^4+F233*I154^3+F234*I154^2+F235*I154+F236 -> -0.1713976639 | G154: =G232*I154^4+G233*I154^3+G234*I154^2+G235*I154+G236 -> 0.9879686569 | H154: =IF(M154<0,"-",H232*L154^4+H233*L154^3+H234*L154^2+H235*L154+H236) -> 20.29961763 | I154: =Simulator!$G$8+C154*B154*D154/1000 -> 33.05692848 | J154: =Simulator!$M$44 -> 107 | K154: =Simulator!K70 -> 615 | L154: 0.1743272569 | M154: =M232*Q154^4+M233*Q154^3+M234*Q154^2+M235*Q154+M236 -> 31.79063271 | N154: =Simulator!$G$8+C154*M154*Q154/1000 -> 26.22362247 | O154: =O232*N154^4+O233*N154^3+O234*N154^2+O235*N154+O236 -> 0.9980294701 | P154: =P232*N154^4+P233*N154^3+P234*N154^2+P235*N154+P236 -> -0.02178220568 | Q154: =Q232*R154^4+Q233*R154^3+Q234*R154^2+Q235*R154+Q236 -> 20.25791166 | R154: 0.1739837398 | S154: =S232*H154^4+S233*H154^3+S234*H154^2+S235*H154+S236 -> 31.79268866
A155: 2835 1W 18V | B155: =Simulator!$M$14 -> 120 | C155: 28 | D155: =D237*B155^4+D238*B155^3+D239*B155^2+D240*B155+D241 -> 19.90072608 | E155: =E237*B155^4+E238*B155^3+E239*B155^2+E240*B155+E241 -> 1.815190932 | F155: =F237*I155^4+F238*I155^3+F239*I155^2+F240*I155+F241 -> -0.8013959354 | G155: =G237*I155^4+G238*I155^3+G239*I155^2+G240*I155+G241 -> 0.865270004 | H155: =IF(M155<0,"-",H237*L155^4+H238*L155^3+H239*L155^2+H240*L155+H241) -> 45.69220995 | I155: =Simulator!$G$8+C155*B155*D155/1000 -> 91.86643963 | J155: =Simulator!$M$44 -> 107 | K155: =Simulator!K61 -> 120 | L155: =J155/K155/O155 -> 0.9278604171 | M155: =M237*Q155^4+M238*Q155^3+M239*Q155^2+M240*Q155+M241 -> 18.37562268 | N155: =Simulator!$G$8+C155*M155*Q155/1000 -> 47.41862111 | O155: =O237*N155^4+O238*N155^3+O239*N155^2+O240*N155+O241 -> 0.9609922465 | P155: =P237*N155^4+P238*N155^3+P239*N155^2+P240*N155+P241 -> -0.3234674715 | Q155: =Q237*R155^4+Q238*R155^3+Q239*R155^2+Q240*R155+Q241 -> 43.57213105 | R155: =J155/K155 -> 0.8916666667 | S155: =S237*H155^4+S238*H155^3+S239*H155^2+S240*H155+S241 -> 18.45421225
A156: 2835 0.2W 3V L | B156: =Simulator!$M$14 -> 120 | C156: 33 | D156: =D242*B156^4+D243*B156^3+D244*B156^2+D245*B156+D246 -> 3.181171642 | E156: =E242*B156^4+E243*B156^3+E244*B156^2+E245*B156+E246 -> 1.764195882 | F156: =F242*I156^4+F243*I156^3+F244*I156^2+F245*I156+F246 -> -0.02475420984 | G156: =G242*I156^4+G243*I156^3+G244*I156^2+G245*I156+G246 -> 0.9772807724 | H156: =IF(M156<0,"-",H242*L156^4+H243*L156^3+H244*L156^2+H245*L156+H246) -> - | I156: =Simulator!$G$8+C156*B156*D156/1000 -> 37.5974397 | J156: =Simulator!$M$44 -> 107 | K156: =Simulator!K48 -> 24 | L156: 0.001064710838 | M156: =M242*Q156^4+M243*Q156^3+M244*Q156^2+M245*Q156+M246 -> -49.07234364 | N156: =Simulator!$G$8+C156*M156*Q156/1000 -> -1098.662471 | O156: =O242*N156^4+O243*N156^3+O244*N156^2+O245*N156+O246 -> 4187.365409 | P156: =P242*N156^4+P243*N156^3+P244*N156^2+P245*N156+P246 -> 908.3616221 | Q156: =Q242*R156^4+Q243*R156^3+Q244*R156^2+Q245*R156+Q246 -> 693.8812247 | R156: 4.458333333 | S156: =S242*H156^4+S243*H156^3+S244*H156^2+S245*H156+S246 -> 
A157: 2835 1W 9V L | B157: =Simulator!$M$14 -> 120 | C157: 13.96 | D157: =D247*B157^4+D248*B157^3+D249*B157^2+D250*B157+D251 -> 9.456440768 | E157: =E247*B157^4+E248*B157^3+E249*B157^2+E250*B157+E251 -> 1.15192566 | F157: =F247*I157^4+F248*I157^3+F249*I157^2+F250*I157+F251 -> -0.07138365296 | G157: =G247*I157^4+G248*I157^3+G249*I157^2+G250*I157+G251 -> 0.9692228741 | H157: =IF(M157<0,"-",H247*L157^4+H248*L157^3+H249*L157^2+H250*L157+H251) -> 94.19322865 | I157: =Simulator!$G$8+C157*B157*D157/1000 -> 40.84142957 | J157: =Simulator!$M$44 -> 107 | K157: =Simulator!K54 -> 115 | L157: 0.9520401827 | M157: =M247*Q157^4+M248*Q157^3+M249*Q157^2+M250*Q157+M251 -> 9.182028434 | N157: =Simulator!$G$8+C157*M157*Q157/1000 -> 36.73544293 | O157: =O247*N157^4+O248*N157^3+O249*N157^2+O250*N157+O251 -> 0.9773062099 | P157: =P247*N157^4+P248*N157^3+P249*N157^2+P250*N157+P251 -> -0.05475439513 | Q157: =Q247*R157^4+Q248*R157^3+Q249*R157^2+Q250*R157+Q251 -> 91.5536017 | R157: 0.9304347826 | S157: =S247*H157^4+S248*H157^3+S249*H157^2+S250*H157+S251 -> 9.208264187
A158: 2836 1W 9V Gen3 | B158: =Simulator!$M$14 -> 120 | C158: 8.66 | D158: =D252*B158^4+D253*B158^3+D254*B158^2+D255*B158+D256 -> 9.668431168 | E158: =E252*B158^4+E253*B158^3+E254*B158^2+E255*B158+E256 -> 1.155704974 | F158: =F252*I158^4+F253*I158^3+F254*I158^2+F255*I158+F256 -> 0.03288244149 | G158: =G252*I158^4+G253*I158^3+G254*I158^2+G255*I158+G256 -> 0.9794126469 | H158: =IF(M158<0,"-",H252*L158^4+H253*L158^3+H254*L158^2+H255*L158+H256) -> 84.39491725 | I158: =Simulator!$G$8+C158*B158*D158/1000 -> 35.04743367 | J158: =Simulator!$M$44 -> 107 | K158: =Simulator!K56 -> 125 | L158: 0.8678864706 | M158: =M252*Q158^4+M253*Q158^3+M254*Q158^2+M255*Q158+M256 -> 9.209246394 | N158: =Simulator!$G$8+C158*M158*Q158/1000 -> 31.62271514 | O158: =O252*N158^4+O253*N158^3+O254*N158^2+O255*N158+O256 -> 0.9863041181 | P158: =P252*N158^4+P253*N158^3+P254*N158^2+P255*N158+P256 -> 0.03721478272 | Q158: =Q252*R158^4+Q253*R158^3+Q254*R158^2+Q255*R158+Q256 -> 83.0412907 | R158: 0.856 | S158: =S252*H158^4+S253*H158^3+S254*H158^2+S255*H158+S256 -> 9.226844912
A159: 2837 0.5W 3V Gen1 | B159: =Simulator!$M$14 -> 120 | C159: 20 | D159: =D257*B159^4+D258*B159^3+D259*B159^2+D260*B159+D261 -> 3.186347027 | E159: =E257*B159^4+E258*B159^3+E259*B159^2+E260*B159+E261 -> 0.8289015698 | F159: =F257*I159^4+F258*I159^3+F259*I159^2+F260*I159+F261 -> -0.009300399562 | G159: =G257*I159^4+G258*I159^3+G259*I159^2+G260*I159+G261 -> 0.9820255547 | H159: =IF(M159<0,"-",H257*L159^4+H258*L159^3+H259*L159^2+H260*L159+H261) -> 330.8207397 | I159: =Simulator!$G$8+C159*B159*D159/1000 -> 32.64723287 | J159: =Simulator!$M$44 -> 107 | K159: =Simulator!K50 -> 62 | L159: 1.786314265 | M159: =M257*Q159^4+M258*Q159^3+M259*Q159^2+M260*Q159+M261 -> 2.432820506 | N159: =Simulator!$G$8+C159*M159*Q159/1000 -> 40.25061428 | O159: =O257*N159^4+O258*N159^3+O259*N159^2+O260*N159+O261 -> 0.9661270055 | P159: =P257*N159^4+P258*N159^3+P259*N159^2+P260*N159+P261 -> -0.01845130282 | Q159: =Q257*R159^4+Q258*R159^3+Q259*R159^2+Q260*R159+Q261 -> 313.4348432 | R159: 1.725806452 | S159: =S257*H159^4+S258*H159^3+S259*H159^2+S260*H159+S261 -> 1.950945761
A160: 2838 0.5W 3V Gen2 | B160: =Simulator!$M$14 -> 120 | C160: 12 | D160: =D262*B160^4+D263*B160^3+D264*B160^2+D265*B160+D266 -> 3.075186867 | E160: =E262*B160^4+E263*B160^3+E264*B160^2+E265*B160+E266 -> 0.8240411406 | F160: =F262*I160^4+F263*I160^3+F264*I160^2+F265*I160+F266 -> -0.005774491044 | G160: =G262*I160^4+G263*I160^3+G264*I160^2+G265*I160+G266 -> 0.9926740085 | H160: =IF(M160<0,"-",H262*L160^4+H263*L160^3+H264*L160^2+H265*L160+H266) -> 316.681261 | I160: =Simulator!$G$8+C160*B160*D160/1000 -> 29.42826909 | J160: =Simulator!$M$44 -> 107 | K160: =Simulator!K51 -> 63 | L160: 1.73323008 | M160: =M262*Q160^4+M263*Q160^3+M264*Q160^2+M265*Q160+M266 -> 3.113553956 | N160: =Simulator!$G$8+C160*M160*Q160/1000 -> 36.4483157 | O160: =O262*N160^4+O263*N160^3+O264*N160^2+O265*N160+O266 -> 0.9799118527 | P160: =P262*N160^4+P263*N160^3+P264*N160^2+P265*N160+P266 -> -0.01282231361 | Q160: =Q262*R160^4+Q263*R160^3+Q264*R160^2+Q265*R160+Q266 -> 306.4107196 | R160: 1.698412698 | S160: =S262*H160^4+S263*H160^3+S264*H160^2+S265*H160+S266 -> 3.009060454
A161: 2835 0.6W 6V | B161: =Simulator!$M$14 -> 120 | C161: 16.93 | D161: =D267*B161^4+D268*B161^3+D269*B161^2+D270*B161+D271 -> 6.355633536 | E161: =E267*B161^4+E268*B161^3+E269*B161^2+E270*B161+E271 -> 1.155628566 | F161: =F272*I161^4+F273*I161^3+F274*I161^2+F275*I161+F276 -> -0.01382158151 | G161: =G267*I161^4+G268*I161^3+G269*I161^2+G270*I161+G271 -> 0.97440344 | H161: =IF(M161<0,"-",H267*L161^4+H268*L161^3+H269*L161^2+H270*L161+H271) -> 168.7619269 | I161: =Simulator!$G$8+C161*B161*D161/1000 -> 37.91210509 | J161: =Simulator!$M$44 -> 107 | K161: =Simulator!K53 -> 75 | L161: 1.478527406 | M161: =M267*Q161^4+M268*Q161^3+M269*Q161^2+M270*Q161+M271 -> 6.497354965 | N161: =Simulator!$G$8+C161*M161*Q161/1000 -> 42.61320483 | O161: =O267*N161^4+O268*N161^3+O269*N161^2+O270*N161+O271 -> 0.9649240598 | P161: =P267*N161^4+P268*N161^3+P269*N161^2+P270*N161+P271 -> -0.1093670052 | Q161: =Q267*R161^4+Q268*R161^3+Q269*R161^2+Q270*R161+Q271 -> 160.1197244 | R161: 1.426666667 | S161: =S267*H161^4+S268*H161^3+S269*H161^2+S270*H161+S271 -> 6.481210797
A162: 2835 0.5W 3 Gen3 | B162: =Simulator!$M$14 -> 120 | C162: 24 | D162: =D272*B162^4+D273*B162^3+D274*B162^2+D275*B162+D276 -> 3.007644794 | E162: =E272*B162^4+E273*B162^3+E274*B162^2+E275*B162+E276 -> 0.8187012754 | F162: =F272*I162^4+F273*I162^3+F274*I162^2+F275*I162+F276 -> -0.009473463101 | G162: =G272*I162^4+G273*I162^3+G274*I162^2+G275*I162+G276 -> 0.9867265331 | H162: =IF(M162<0,"-",H272*L162^4+H273*L162^3+H274*L162^2+H275*L162+H276) -> 254.9106608 | I162: =Simulator!$G$8+C162*B162*D162/1000 -> 33.66201701 | J162: =Simulator!$M$44 -> 107 | K162: =Simulator!K52 -> 70 | L162: =J162/K162/O162 -> 1.576973191 | M162: =M272*Q162^4+M273*Q162^3+M274*Q162^2+M275*Q162+M276 -> 3.284089238 | N162: =Simulator!$G$8+C162*M162*Q162/1000 -> 44.36697922 | O162: =O272*N162^4+O273*N162^3+O274*N162^2+O275*N162+O276 -> 0.9693071751 | P162: =P272*N162^4+P273*N162^3+P274*N162^2+P275*N162+P276 -> -0.02007585591 | Q162: =Q272*R162^4+Q273*R162^3+Q274*R162^2+Q275*R162+Q276 -> 245.7172777 | R162: 1.528571429 | S162: =S272*H162^4+S273*H162^3+S274*H162^2+S275*H162+S276 -> 3.293592769
A163: 2835 1W 9V CRI90(99N) | B163: =Simulator!$M$14 -> 120 | C163: 16 | D163: =D277*B163^4+D278*B163^3+D279*B163^2+D280*B163+D281 -> 9.369059136 | E163: =E277*B163^4+E278*B163^3+E279*B163^2+E280*B163+E281 -> 1.154577283 | F163: =F277*I163^4+F278*I163^3+F279*I163^2+F280*I163+F281 -> -0.08338487857 | G163: =G277*I163^4+G278*I163^3+G279*I163^2+G280*I163+G281 -> 0.9704982279 | H163: =IF(M163<0,"-",H277*L163^4+H278*L163^3+H279*L163^2+H280*L163+H281) ->  | I163: =Simulator!$G$8+C163*B163*D163/1000 -> 42.98859354 | J163: =Simulator!$M$44 -> 107 | K163: =Simulator!K57 -> - | L163: =J163/K163/O163 ->  | M163: =M277*Q163^4+M278*Q163^3+M279*Q163^2+M280*Q163+M281 ->  | N163: =Simulator!$G$8+C163*M163*Q163/1000 ->  | O163: =O277*N163^4+O278*N163^3+O279*N163^2+O280*N163+O281 ->  | P163: =P277*N163^4+P278*N163^3+P279*N163^2+P280*N163+P281 ->  | Q163: =Q277*R163^4+Q278*R163^3+Q279*R163^2+Q280*R163+Q281 ->  | S163: =S277*H163^4+S278*H163^3+S279*H163^2+S280*H163+S281 -> 
A164: 2836 1W 9V CRI90(9BN) | B164: =Simulator!$M$14 -> 120 | C164: 14 | D164: =D282*B164^4+D283*B164^3+D284*B164^2+D285*B164+D286 -> 9.391852096 | E164: =E282*B164^4+E283*B164^3+E284*B164^2+E285*B164+E286 -> 1.139913606 | F164: =F282*I164^4+F283*I164^3+F284*I164^2+F285*I164+F286 -> -0.07801853513 | G164: =G282*I164^4+G283*I164^3+G284*I164^2+G285*I164+G286 -> 0.9803385694 | H164: =IF(M164<0,"-",H282*L164^4+H283*L164^3+H284*L164^2+H285*L164+H286) ->  | I164: =Simulator!$G$8+C164*B164*D164/1000 -> 40.77831152 | J164: =Simulator!$M$44 -> 107 | K164: =Simulator!K58 -> - | L164: =J164/K164/O164 ->  | M164: =M282*Q164^4+M283*Q164^3+M284*Q164^2+M285*Q164+M286 ->  | N164: =Simulator!$G$8+C164*M164*Q164/1000 ->  | O164: =O282*N164^4+O283*N164^3+O284*N164^2+O285*N164+O286 ->  | P164: =P282*N164^4+P283*N164^3+P284*N164^2+P285*N164+P286 ->  | Q164: =Q282*R164^4+Q283*R164^3+Q284*R164^2+Q285*R164+Q286 ->  | R164: =J164/K164 ->  | S164: =S282*H164^4+S283*H164^3+S284*H164^2+S285*H164+S286 -> 
A165: 2837 1W 9V CRI90(9CN) | B165: =Simulator!$M$14 -> 120 | C165: 12 | D165: =D287*B165^4+D288*B165^3+D289*B165^2+D290*B165+D291 -> 9.670869216 | E165: =E287*B165^4+E288*B165^3+E289*B165^2+E290*B165+E291 -> 1.156328619 | F165: =F287*I165^4+F288*I165^3+F289*I165^2+F290*I165+F291 -> -0.04285168691 | G165: =G287*I165^4+G288*I165^3+G289*I165^2+G290*I165+G291 -> 0.9695872861 | H165: =IF(M165<0,"-",H287*L165^4+H288*L165^3+H289*L165^2+H290*L165+H291) ->  | I165: =Simulator!$G$8+C165*B165*D165/1000 -> 38.92605167 | J165: =Simulator!$M$44 -> 107 | K165: =Simulator!K59 -> - | L165: =J165/K165/O165 ->  | M165: =M287*Q165^4+M288*Q165^3+M289*Q165^2+M290*Q165+M291 ->  | N165: =Simulator!$G$8+C165*M165*Q165/1000 ->  | O165: =O287*N165^4+O288*N165^3+O289*N165^2+O290*N165+O291 ->  | P165: =P287*N165^4+P288*N165^3+P289*N165^2+P290*N165+P291 ->  | Q165: =Q287*R165^4+Q288*R165^3+Q289*R165^2+Q290*R165+Q291 ->  | R165: =J165/K165 ->  | S165: =S287*H165^4+S288*H165^3+S289*H165^2+S290*H165+S291 -> 
A166: 3030 1W 6V(S) | B166: =Simulator!$M$14 -> 120 | C166: 12 | D166: =D292*B166^4+D293*B166^3+D294*B166^2+D295*B166+D296 -> 5.864998963 | E166: =E292*B166^4+E293*B166^3+E294*B166^2+E295*B166+E296 -> 0.8182603382 | F166: =F292*I166^4+F293*I166^3+F294*I166^2+F295*I166+F296 -> -0.01517049244 | G166: =G292*I166^4+G293*I166^3+G294*I166^2+G295*I166+G296 -> 0.9873085877 | H166: =IF(M166<0,"-",H292*L166^4+H293*L166^3+H294*L166^2+H295*L166+H296) -> 119.4224279 | I166: =Simulator!$G$8+C166*B166*D166/1000 -> 33.44559851 | J166: =Simulator!$M$44 -> 107 | K166: =Simulator!K63 -> 133 | L166: =J166/K166/O166 -> 0.814638065 | M166: =M292*Q166^4+M293*Q166^3+M294*Q166^2+M295*Q166+M296 -> 5.853922581 | N166: =Simulator!$G$8+C166*M166*Q166/1000 -> 33.27441651 | O166: =O292*N166^4+O293*N166^3+O294*N166^2+O295*N166+O296 -> 0.9875689742 | P166: =P292*N166^4+P293*N166^3+P294*N166^2+P295*N166+P296 -> -0.01486844408 | Q166: =Q292*R166^4+Q293*R166^3+Q294*R166^2+Q295*R166+Q296 -> 117.7901995 | R166: =J166/K166 -> 0.8045112782 | S166: =S292*H166^4+S293*H166^3+S294*H166^2+S295*H166+S296 -> 5.862107083
A172: 2835 0.2W 3V | D172: -3.8922e-10 | E172: -2.3266e-10 | F172: 6.0764e-10 | G172: -1.3897e-09 | H172: 0.91463 | M172: -3.8922e-10 | O172: -1.3897e-09 | P172: 6.0764e-10 | Q172: 0.91463 | S172: -3.8922e-10
D173: 2.0415e-07 | E173: 1.1076e-07 | F173: -1.9618e-07 | G173: 3.5039e-07 | H173: -2.9762 | M173: 2.0415e-07 | O173: 3.5039e-07 | P173: -1.9618e-07 | Q173: -2.9762 | S173: 2.0415e-07
D174: -4.2085e-05 | E174: -4.0881e-05 | F174: 2.6359e-05 | G174: -3.4299e-05 | H174: 10.689 | M174: -4.2085e-05 | O174: -3.4299e-05 | P174: 2.6359e-05 | Q174: 10.689 | S174: -4.2085e-05
D175: 0.007458 | E175: 0.018832 | F175: -0.0028172 | G175: -0.00015458 | H175: 50.928 | M175: 0.007458 | O175: -0.00015458 | P175: -0.0028172 | Q175: 50.928 | S175: 0.007458
D176: 2.6286 | E176: -0.0036631 | F176: 0.056785 | G176: 1.0204 | H176: 0.49709 | M176: 2.6286 | O176: 1.0204 | P176: 0.056785 | Q176: 0.49709 | S176: 2.6286
A177: 2835 0.2W 3V Gen2 | D177: -7.0466e-10 | E177: -1.2261e-10 | F177: 0 | G177: 3.4957e-09 | H177: 0.12338 | M177: -7.0466e-10 | O177: 3.4957e-09 | P177: 0 | Q177: 0.12338 | S177: -7.0466e-10
D178: 2.796e-07 | E178: 5.2391e-08 | F178: 0 | G178: -9.4962e-07 | H178: -0.44948 | M178: 2.796e-07 | O178: -9.4962e-07 | P178: 0 | Q178: -0.44948 | S178: 2.796e-07
D179: -4.3129e-05 | E179: -2.048e-05 | F179: 5.9524e-08 | G179: 8.5649e-05 | H179: 4.0022 | M179: -4.3129e-05 | O179: 8.5649e-05 | P179: 5.9524e-08 | Q179: 4.0022 | S179: -4.3129e-05
D180: 0.0058885 | E180: 0.017868 | F180: -0.0010527 | G180: -0.0044437 | H180: 55.848 | M180: 0.0058885 | O180: -0.0044437 | P180: -0.0010527 | Q180: 55.848 | S180: 0.0058885
D181: 2.5509 | E181: -0.0074715 | F181: 0.026396 | G181: 1.071 | H181: 0.43947 | M181: 2.5509 | O181: 1.071 | P181: 0.026396 | Q181: 0.43947 | S181: 2.5509
A182: 2835 0.5W 3V | D182: -9.1292e-10 | E182: -8.8284e-11 | F182: 4.3403e-10 | G182: 1.125e-09 | H182: 6.9315 | M182: -9.1292e-10 | O182: 1.125e-09 | P182: 4.3403e-10 | Q182: 6.9315 | S182: -9.1292e-10
D183: 3.6069e-07 | E183: 3.9262e-08 | F183: -1.7188e-07 | G183: -3.0634e-07 | H183: -8.2331 | M183: 3.6069e-07 | O183: -3.0634e-07 | P183: -1.7188e-07 | Q183: -8.2331 | S183: 3.6069e-07
D184: -5.4236e-05 | E184: -1.4407e-05 | F184: 2.5256e-05 | G184: 2.4191e-05 | H184: 30.651 | M184: -5.4236e-05 | O184: 2.4191e-05 | P184: 2.5256e-05 | Q184: 30.651 | S184: -5.4236e-05
D185: 0.0073586 | E185: 0.008259 | F185: -0.0022663 | G185: -0.0026813 | H185: 120.3 | M185: 0.0073586 | O185: -0.0026813 | P185: -0.0022663 | Q185: 120.3 | S185: 0.0073586
D186: 2.5906 | E186: -0.0025251 | F186: 0.043388 | G186: 1.0563 | H186: 0.35478 | M186: 2.5906 | O186: 1.0563 | P186: 0.043388 | Q186: 0.35478 | S186: 2.5906
A187: 2835 1W 9V Gen2 | D187: -4.1641e-09 | E187: -3.2577e-10 | F187: -5.6615e-09 | G187: 2.7882e-09 | H187: 3.495 | M187: -4.1641e-09 | O187: 2.7882e-09 | P187: -5.6615e-09 | Q187: 3.495 | S187: -4.1641e-09
D188: 1.3918e-06 | E188: 1.1543e-07 | F188: 1.5301e-06 | G188: -7.2494e-07 | H188: -6.6367 | M188: 1.3918e-06 | O188: -7.2494e-07 | P188: 1.5301e-06 | Q188: -6.6367 | S188: 1.3918e-06
D189: -0.00018196 | E189: -2.8788e-05 | F189: -0.0001305 | G189: 6.3626e-05 | H189: 20.914 | M189: -0.00018196 | O189: 6.3626e-05 | P189: -0.0001305 | Q189: 20.914 | S189: -0.00018196
D190: 0.024661 | E190: 0.012118 | F190: 0.00089717 | G190: -0.0039938 | H190: 81.585 | M190: 0.024661 | O190: -0.0039938 | P190: 0.00089717 | Q190: 81.585 | S190: 0.024661
D191: 7.8791 | E191: =-0.0067306 -> -0.0067306 | F191: 0.037436 | G191: 1.0703 | H191: 0.64152 | M191: 7.8791 | O191: 1.0703 | P191: 0.037436 | Q191: 0.64152 | S191: 7.8791
A192: 2835 1W 12V | D192: -2.5354e-08 | E192: -1.8028e-09 | F192: 6.0847e-09 | G192: 0 | H192: 3.1588 | M192: -2.5354e-08 | O192: 0 | P192: 6.0847e-09 | Q192: 3.1588 | S192: -2.5354e-08
D193: 5.9923e-06 | E193: 4.6514e-07 | F193: -1.6863e-06 | G193: 0 | H193: -7.4316 | M193: 5.9923e-06 | O193: 0 | P193: -1.6863e-06 | Q193: -7.4316 | S193: 5.9923e-06
D194: -0.00054643 | E194: -6.7945e-05 | F194: 0.00018884 | G194: -1.8602e-06 | H194: 19.806 | M194: -0.00054643 | O194: -1.8602e-06 | P194: 0.00018884 | Q194: 19.806 | S194: -0.00054643
D195: 0.038158 | E195: 0.016622 | F195: -0.015492 | G195: -0.001592 | H195: 59.172 | M195: 0.038158 | O195: -0.001592 | P195: -0.015492 | Q195: 59.172 | S195: 0.038158
D196: 10.688 | E196: =- 0.0028464 -> -0.0028464 | F196: 0.29325 | G196: 1.0412 | H196: 0.23206 | M196: 10.688 | O196: 1.0412 | P196: 0.29325 | Q196: 0.23206 | S196: 10.688
A197: 3030 1W 6V | D197: -6.9275e-11 | E197: -7.1849e-11 | F197: 0 | G197: 0 | H197: 16.929 | M197: -6.9275e-11 | O197: 0 | P197: 0 | Q197: 16.929 | S197: -6.9275e-11
D198: 5.8839e-08 | E198: 4.3582e-08 | F198: 7.3678e-08 | G198: -1.1908e-08 | H198: -54.196 | M198: 5.8839e-08 | O198: -1.1908e-08 | P198: 7.3678e-08 | Q198: -54.196 | S198: 5.8839e-08
D199: -2.0807e-05 | E199: -1.4005e-05 | F199: -1.0538e-05 | G199: 2.0601e-06 | H199: 80.485 | M199: -2.0807e-05 | O199: 2.0601e-06 | P199: -1.0538e-05 | Q199: 80.485 | S199: -2.0807e-05
D200: 0.0077074 | E200: 0.0080984 | F200: -0.0022315 | G200: -0.0020017 | H200: 102.96 | M200: 0.0077074 | O200: -0.0020017 | P200: -0.0022315 | Q200: 102.96 | S200: 0.0077074
D201: 5.3995 | E201: -0.011876 | F201: 0.061222 | G201: 1.0489 | H201: 4.0944 | M201: 5.3995 | O201: 1.0489 | P201: 0.061222 | Q201: 4.0944 | S201: 5.3995
A202: 5050 1W 24V | D202: -6.7063e-10 | E202: 5.7324e-11 | F202: 1.4969e-08 | G202: 4.1991e-10 | H202: -0.0078612 | M202: -6.7063e-10 | O202: 4.1991e-10 | P202: 1.4969e-08 | Q202: -0.0078612 | S202: -6.7063e-10
D203: 3.761e-07 | E203: -2.0929e-08 | F203: -4.8295e-06 | G203: -1.0386e-07 | H203: 0.24469 | M203: 3.761e-07 | O203: -1.0386e-07 | P203: -4.8295e-06 | Q203: 0.24469 | S203: 3.761e-07
D204: -0.00010338 | E204: -1.4773e-05 | F204: 0.00058481 | G204: 2.9575e-06 | H204: 1.0146 | M204: -0.00010338 | O204: 2.9575e-06 | P204: 0.00058481 | Q204: 1.0146 | S204: -0.00010338
D205: 0.032257 | E205: 0.022942 | F205: -0.040724 | G205: -0.001346 | H205: 43.736 | M205: 0.032257 | O205: -0.001346 | P205: -0.040724 | Q205: 43.736 | S205: 0.032257
... 91 more rows
